Workbook

Sheet Imprint
B2: SmartPipeliner | E2: Version 3.0.0
B4: Simple and fast Tool to Control the Work-In-Progress of a Multi-Project-Organization
B6: Tutorials: | C6: Basic Introduction in how to use the SmartPipeliner and how to do the first Staggering | J6: <<<<< klick here to watch on youtube
C7: Advanced feature "the capacity model" | J7: <<<<< klick here to watch on youtube
C8: Advanced feature "mass import of projects" | J8: <<<<< klick here to watch on youtube
C9: SuperAdvanced Feature "anonymous export" | J9: <<<<< klick here to watch on youtube
C11: Introduction in how to use the SmartPipliner with a real case data - stagger a big portfolio in 40' | J11: <<<<< HowTo fix/stagger a full portfolio - do Lean Portfolio Management
C13: Introduction into the basic "EssentialFlow"-Features | J13: < new < HowTo manage a protfolio without detailed projects plans - yes it works!
C14: More details about Essential Flow - The Website | J14: < Home of Essential Flow
C15: Request the full EssentialFlow Documentation | J15: < Specification - all CC-BY-SA so free to use and enhance
C17: How to prepare "Trade of Descisions" with the SmartPipeliner | J17: (prior Version and German only - sorry - if enyone want's to translate - very welcome)
C18: How to do "Business Value Optization" with the SmartPipliner based on Throughput Accounting | J18: (prior Version and German only - sorry - if enyone want's to translate - very welcome)
B20: license:
B23: Creative Commons BY-SA 4.0
B25: V3.0.0 | C25: 2023-01-04 | E25: Essential Flow Release
B26: * teams can be marked as virtual drum (get a "*" as first character)
B27: * there is a roadmap few - here you can see the projects start, end like a gantt chart with the month market in organce when the project is in a virtual drum active
B28: * in the project list you see after generation the TBP all project delimiting dates - start/end & entry/exit of the constraint (if it touches a virtual constraint team)
B29: * in the project list you find also a basic execution management - out of the status and date there are quite some messages generated that show what to do
B30: * as last new section you'll find some very basic columns for doing buffer regain management that can also be used for continous improvement
B32: v2.2.1 | C32: 2022-09-17 | E32: Ken-sent-me-Release
B33: * anonymous export of all data to a workbook called "anonymous_..." to possibility to get external feedback and help
B35: v2.1.3 | C35: 2022-09-11
B36: * new tutorial video that shows how to use the SmartPipeliner to fix/stagger a whole portfolio in a few minutes - based on a real case with real (anonymous) data
B37: * smaller text changes for better understanding
B38: * Lets MoveItMoveIt is now a button on the TBP
B39: * simple switch between "simple" and "detailed" capacity model - simple is just "PersonDays per Year / 12 months", detailed "concerning typ. vacation, illness and bank holidays" - just a switch in CapacityModel
B41: v2.1.2 | C41: 2022-09-05
B42: * import script added - generates PRJ_sheets out of data in sheet "import"
B44: v2.0.7 | C44: 2021-01-21
B45: * small fix for drawing load diagrams in international excel versions
B47: v2.0.6 | C47: 2020-09-09
B48: * small fix of the automatic timeline in TeamList and the appropriate CapacityData
B50: v2.0.5 | C50: 2018-08-21
B51: * downwards compatible to Excel 2010
B53: v2.0.4 | C53: 2018-08-17
B54: * relative Load shown in extra sheet "TBP%" including diagram of load over time and project
B55: * capacity for relative load is reduced by all "Projects" not starting with "PRJ_" … so you can use une "Projects" to manage vacation or such things
B57: v1.22 | C57: 2016-08-29
B58: * bug in INIDIRECT funktion bei Excel 2010 fixed … INDEX ist wohl besser
B60: v1.21 | C60: 2014-08-03
B61: * backlink from project sheets to project list - small but useful
B63: v1.20 | C63: 2014-07-11
B64: * year overspanning CapacityModel, CapacityData and FTE-Table in Teamlist
B66: v1.19 | C66: 2013-11-17
B67: * colours for projects
B68: * some spaces for better readable TBP
B70: v1.18 | C70: 2013-05-15
B71: * with functionality to move projects quickly out of TBP - just enter the number of month to be shifted directly after the last month of a project - and excute the marcoe ILikeToMoveItMoveIt ;-)
B73: v1.17 | C73: 2013-01-21
B74: * including complete capacity model

Sheet TBP
A1: Team Balancing Plan
A2: ="Version: "&TEXT(TODAY(),"JJJJ-MM-TT") -> Version: 2023-03-12
A4: T_QA | B4: Quality Assurance (Michael Meier) | C4: =TEXT(2023,"0000")&"-"&TEXT(1,"00") -> 2023-01 | D4: =TEXT(2023,"0000")&"-"&TEXT(2,"00") -> 2023-02 | E4: =TEXT(2023,"0000")&"-"&TEXT(3,"00") -> 2023-03 | F4: =TEXT(2023,"0000")&"-"&TEXT(4,"00") -> 2023-04 | G4: =TEXT(2023,"0000")&"-"&TEXT(5,"00") -> 2023-05 | H4: =TEXT(2023,"0000")&"-"&TEXT(6,"00") -> 2023-06 | I4: =TEXT(2023,"0000")&"-"&TEXT(7,"00") -> 2023-07 | J4: =TEXT(2023,"0000")&"-"&TEXT(8,"00") -> 2023-08 | K4: =TEXT(2023,"0000")&"-"&TEXT(9,"00") -> 2023-09 | L4: =TEXT(2023,"0000")&"-"&TEXT(10,"00") -> 2023-10 | M4: =TEXT(2023,"0000")&"-"&TEXT(11,"00") -> 2023-11 | N4: =TEXT(2023,"0000")&"-"&TEXT(12,"00") -> 2023-12 | O4: =TEXT(2024,"0000")&"-"&TEXT(1,"00") -> 2024-01 | P4: =TEXT(2024,"0000")&"-"&TEXT(2,"00") -> 2024-02 | Q4: =TEXT(2024,"0000")&"-"&TEXT(3,"00") -> 2024-03 | R4: =TEXT(2024,"0000")&"-"&TEXT(4,"00") -> 2024-04 | S4: =TEXT(2024,"0000")&"-"&TEXT(5,"00") -> 2024-05 | T4: =TEXT(2024,"0000")&"-"&TEXT(6,"00") -> 2024-06
B5: Testprojekt #1 (PRJ_Test #1) | D5: 8 | E5: 10 | F5: 9 | G5: 2
B6: Testprojekt #2 (PRJ_Test #2) | E6: 5 | F6: 5 | G6: 10 | H6: 10 | I6: 20 | J6: 5
B7: Testprojekt #3 (PRJ_Test #3) | J7: 5 | K7: 10 | L7: 5
B8: Testprojekt #4 (PRJ_Test #4) | L8: 8 | M8: 10 | N8: 9 | O8: 2
B9: Testprojekt #5 (PRJ_Test #5) | N9: 5 | O9: 5 | P9: 10 | Q9: 10 | R9: 15 | S9: 5
B10: Testprojekt #6 (PRJ_Test #6) | R10: 5 | S10: 10 | T10: 5
B11: > load per month | C11: =SUM(C5:C10) -> 0 | D11: 8 | E11: 15 | F11: 14 | G11: 12 | H11: 10 | I11: 20 | J11: 10 | K11: 10 | L11: 13 | M11: 10 | N11: 14 | O11: 7 | P11: 10 | Q11: 10 | R11: 20 | S11: 15 | T11: 5
B12: > capacity per month | C12: 14.9896988 | D12: 14.69578313 | E12: 15.93442771 | F12: 13.10024096 | G12: 14.41586345 | H12: 14.5488253 | I12: 15.13665663 | J12: 15.29061245 | K12: 13.96099398 | L12: 14.9896988 | M12: 15.28361446 | N12: 11.83360442 | O12: 15.57836653 | P12: 15.30761952 | Q12: 13.74561753 | R12: 15.16183267 | S12: 13.58594622 | T12: 13.74561753
B13: > aggregated overload | C13: =IF(C11>C12,C11-C12,0) -> 0 | D13: =IF((D11+C13)>D12,D11+C13-D12,0) -> 0 | E13: 0 | F13: 0.8997590361 | G13: 0 | H13: 0 | I13: 4.863343373 | J13: 0 | K13: 0 | L13: 0 | M13: 0 | N13: 2.166395582 | O13: 0 | P13: 0 | Q13: 0 | R13: 4.838167331 | S13: 6.252221116 | T13: 0
B14: > load factor | C14: =C11/C12 -> 0 | D14: 0.5443738471 | E14: 0.9413579372 | F14: 1.068682633 | G14: 0.8324163196 | H14: 0.687340716 | I14: 1.321295745 | J14: 0.6539960406 | K14: 0.7162813778 | L14: 0.8672622564 | M14: 0.6542954893 | N14: 1.183071489 | O14: 0.4493410772 | P14: 0.6532694379 | Q14: 0.7275046012 | R14: 1.31910175 | S14: 1.104082098 | T14: 0.3637523006 | U14: =AVERAGE(C14:T14) -> 0.7826347286
A16: T_DEV | B16: Development (Hans Huber) | C16: =TEXT(2023,"0000")&"-"&TEXT(1,"00") -> 2023-01 | D16: =TEXT(2023,"0000")&"-"&TEXT(2,"00") -> 2023-02 | E16: =TEXT(2023,"0000")&"-"&TEXT(3,"00") -> 2023-03 | F16: =TEXT(2023,"0000")&"-"&TEXT(4,"00") -> 2023-04 | G16: =TEXT(2023,"0000")&"-"&TEXT(5,"00") -> 2023-05 | H16: =TEXT(2023,"0000")&"-"&TEXT(6,"00") -> 2023-06 | I16: =TEXT(2023,"0000")&"-"&TEXT(7,"00") -> 2023-07 | J16: =TEXT(2023,"0000")&"-"&TEXT(8,"00") -> 2023-08 | K16: =TEXT(2023,"0000")&"-"&TEXT(9,"00") -> 2023-09 | L16: =TEXT(2023,"0000")&"-"&TEXT(10,"00") -> 2023-10 | M16: =TEXT(2023,"0000")&"-"&TEXT(11,"00") -> 2023-11 | N16: =TEXT(2023,"0000")&"-"&TEXT(12,"00") -> 2023-12 | O16: =TEXT(2024,"0000")&"-"&TEXT(1,"00") -> 2024-01 | P16: =TEXT(2024,"0000")&"-"&TEXT(2,"00") -> 2024-02 | Q16: =TEXT(2024,"0000")&"-"&TEXT(3,"00") -> 2024-03 | R16: =TEXT(2024,"0000")&"-"&TEXT(4,"00") -> 2024-04 | S16: =TEXT(2024,"0000")&"-"&TEXT(5,"00") -> 2024-05 | T16: =TEXT(2024,"0000")&"-"&TEXT(6,"00") -> 2024-06
B17: Testprojekt #1 (PRJ_Test #1) | C17: 10 | D17: 25 | E17: 20 | F17: 10 | G17: 2
B18: Testprojekt #2 (PRJ_Test #2) | D18: 10 | E18: 10 | F18: 25 | G18: 30 | H18: 30 | I18: 20 | J18: 5
B19: Testprojekt #3 (PRJ_Test #3) | J19: 10 | K19: 10 | L19: 10
B20: Testprojekt #4 (PRJ_Test #4) | K20: 10 | L20: 25 | M20: 20 | N20: 10 | O20: 2
B21: Testprojekt #5 (PRJ_Test #5) | M21: 10 | N21: 10 | O21: 25 | P21: 30 | Q21: 30 | R21: 20 | S21: 5
B22: Testprojekt #6 (PRJ_Test #6) | R22: 10 | S22: 10 | T22: 10
B23: > load per month | C23: =SUM(C17:C22) -> 10 | D23: 35 | E23: 30 | F23: 35 | G23: 32 | H23: 30 | I23: 20 | J23: 15 | K23: 20 | L23: 35 | M23: 30 | N23: 20 | O23: 27 | P23: 30 | Q23: 30 | R23: 30 | S23: 15 | T23: 10
B24: > capacity per month | C24: 46.29171687 | D24: 45.38403614 | E24: 49.20926205 | F24: 40.45662651 | G24: 44.51957831 | H24: 44.93019578 | I24: 46.74555723 | J24: 47.22100904 | K24: 43.11483434 | L24: 46.29171687 | M24: 47.19939759 | N24: 36.54495482 | O24: 48.10966135 | P24: 47.27353088 | Q24: 42.4497012 | R24: 46.82330677 | S24: 41.95659861 | T24: 42.4497012
B25: > aggregated overload | C25: =IF(C23>C24,C23-C24,0) -> 0 | D25: =IF((D23+C25)>D24,D23+C25-D24,0) -> 0 | E25: 0 | F25: 0 | G25: 0 | H25: 0 | I25: 0 | J25: 0 | K25: 0 | L25: 0 | M25: 0 | N25: 0 | O25: 0 | P25: 0 | Q25: 0 | R25: 0 | S25: 0 | T25: 0
B26: > load factor | C26: =C23/C24 -> 0.2160213679 | D26: 0.7711962834 | E26: 0.6096413307 | F26: 0.8651240359 | G26: 0.7187848855 | H26: 0.6677024099 | I26: 0.4278481461 | J26: 0.3176552197 | K26: 0.4638774637 | L26: 0.7560747876 | M26: 0.6356013325 | N26: 0.547271165 | O26: 0.5612178352 | P26: 0.6346045968 | Q26: 0.7067187555 | R26: 0.6407065641 | S26: 0.3575122984 | T26: 0.2355729185 | U26: =AVERAGE(C26:T26) -> 0.5629517442
A28: T_PM | B28: Product Management (Franz Weber) | C28: =TEXT(2023,"0000")&"-"&TEXT(1,"00") -> 2023-01 | D28: =TEXT(2023,"0000")&"-"&TEXT(2,"00") -> 2023-02 | E28: =TEXT(2023,"0000")&"-"&TEXT(3,"00") -> 2023-03 | F28: =TEXT(2023,"0000")&"-"&TEXT(4,"00") -> 2023-04 | G28: =TEXT(2023,"0000")&"-"&TEXT(5,"00") -> 2023-05 | H28: =TEXT(2023,"0000")&"-"&TEXT(6,"00") -> 2023-06 | I28: =TEXT(2023,"0000")&"-"&TEXT(7,"00") -> 2023-07 | J28: =TEXT(2023,"0000")&"-"&TEXT(8,"00") -> 2023-08 | K28: =TEXT(2023,"0000")&"-"&TEXT(9,"00") -> 2023-09 | L28: =TEXT(2023,"0000")&"-"&TEXT(10,"00") -> 2023-10 | M28: =TEXT(2023,"0000")&"-"&TEXT(11,"00") -> 2023-11 | N28: =TEXT(2023,"0000")&"-"&TEXT(12,"00") -> 2023-12 | O28: =TEXT(2024,"0000")&"-"&TEXT(1,"00") -> 2024-01 | P28: =TEXT(2024,"0000")&"-"&TEXT(2,"00") -> 2024-02 | Q28: =TEXT(2024,"0000")&"-"&TEXT(3,"00") -> 2024-03 | R28: =TEXT(2024,"0000")&"-"&TEXT(4,"00") -> 2024-04 | S28: =TEXT(2024,"0000")&"-"&TEXT(5,"00") -> 2024-05 | T28: =TEXT(2024,"0000")&"-"&TEXT(6,"00") -> 2024-06
B29: Testprojekt #1 (PRJ_Test #1) | C29: 12 | D29: 2
B30: Testprojekt #2 (PRJ_Test #2) | D30: 15 | E30: 10 | F30: 5 | H30: 2 | I30: 2
B31: Testprojekt #3 (PRJ_Test #3) | J31: 5 | K31: 2 | L31: 2
B32: Testprojekt #4 (PRJ_Test #4) | K32: 12 | L32: 2
B33: Testprojekt #5 (PRJ_Test #5) | M33: 15 | N33: 10 | O33: 5 | Q33: 2 | R33: 2
B34: Testprojekt #6 (PRJ_Test #6) | R34: 5 | S34: 2 | T34: 2
B35: > load per month | C35: =SUM(C29:C34) -> 12 | D35: 17 | E35: 10 | F35: 5 | G35: 0 | H35: 2 | I35: 2 | J35: 5 | K35: 14 | L35: 4 | M35: 15 | N35: 10 | O35: 5 | P35: 0 | Q35: 2 | R35: 7 | S35: 2 | T35: 2
B36: > capacity per month | C36: 17.63493976 | D36: 17.28915663 | E36: 18.74638554 | F36: 15.41204819 | G36: 16.95983936 | H36: 17.11626506 | I36: 17.80783133 | J36: 17.98895582 | K36: 16.4246988 | L36: 17.63493976 | M36: 17.98072289 | N36: 13.92188755 | O36: 18.32749004 | P36: 18.00896414 | Q36: 16.17131474 | R36: 17.8374502 | S36: 15.98346614 | T36: 16.17131474
B37: > aggregated overload | C37: =IF(C35>C36,C35-C36,0) -> 0 | D37: =IF((D35+C37)>D36,D35+C37-D36,0) -> 0 | E37: 0 | F37: 0 | G37: 0 | H37: 0 | I37: 0 | J37: 0 | K37: 0 | L37: 0 | M37: 0 | N37: 0 | O37: 0 | P37: 0 | Q37: 0 | R37: 0 | S37: 0 | T37: 0
B38: > load factor | C38: =C35/C36 -> 0.6804673089 | D38: 0.9832752613 | E38: 0.5334361644 | F38: 0.3244215134 | G38: 0 | H38: 0.1168479217 | I38: 0.1123101384 | J38: 0.2779483172 | K38: 0.8523748395 | L38: 0.2268224363 | M38: 0.8342267489 | N38: 0.7182934041 | O38: 0.2728142255 | P38: 0 | Q38: 0.1236757822 | R38: 0.3924327705 | S38: 0.1251293044 | T38: 0.1236757822 | U38: =AVERAGE(C38:T38) -> 0.3721195511
A40: * VirtualDrum | B40: Virtual Team for Concept & Integration (Super Man) | C40: =TEXT(2023,"0000")&"-"&TEXT(1,"00") -> 2023-01 | D40: =TEXT(2023,"0000")&"-"&TEXT(2,"00") -> 2023-02 | E40: =TEXT(2023,"0000")&"-"&TEXT(3,"00") -> 2023-03 | F40: =TEXT(2023,"0000")&"-"&TEXT(4,"00") -> 2023-04 | G40: =TEXT(2023,"0000")&"-"&TEXT(5,"00") -> 2023-05 | H40: =TEXT(2023,"0000")&"-"&TEXT(6,"00") -> 2023-06 | I40: =TEXT(2023,"0000")&"-"&TEXT(7,"00") -> 2023-07 | J40: =TEXT(2023,"0000")&"-"&TEXT(8,"00") -> 2023-08 | K40: =TEXT(2023,"0000")&"-"&TEXT(9,"00") -> 2023-09 | L40: =TEXT(2023,"0000")&"-"&TEXT(10,"00") -> 2023-10 | M40: =TEXT(2023,"0000")&"-"&TEXT(11,"00") -> 2023-11 | N40: =TEXT(2023,"0000")&"-"&TEXT(12,"00") -> 2023-12 | O40: =TEXT(2024,"0000")&"-"&TEXT(1,"00") -> 2024-01 | P40: =TEXT(2024,"0000")&"-"&TEXT(2,"00") -> 2024-02 | Q40: =TEXT(2024,"0000")&"-"&TEXT(3,"00") -> 2024-03 | R40: =TEXT(2024,"0000")&"-"&TEXT(4,"00") -> 2024-04 | S40: =TEXT(2024,"0000")&"-"&TEXT(5,"00") -> 2024-05 | T40: =TEXT(2024,"0000")&"-"&TEXT(6,"00") -> 2024-06
B41: Testprojekt #1 (PRJ_Test #1) | D41: 1
B42: Testprojekt #2 (PRJ_Test #2) | F42: 2 | G42: 1
B43: Testprojekt #3 (PRJ_Test #3) | K43: 1
B44: Testprojekt #5 (PRJ_Test #5) | O44: 2 | P44: 1
B45: Testprojekt #6 (PRJ_Test #6) | S45: 1
B46: > load per month | C46: =SUM(C41:C45) -> 0 | D46: 1 | E46: 0 | F46: 2 | G46: 1 | H46: 0 | I46: 0 | J46: 0 | K46: 1 | L46: 0 | M46: 0 | N46: 0 | O46: 2 | P46: 1 | Q46: 0 | R46: 0 | S46: 1 | T46: 0
B47: > capacity per month | C47: 1 | D47: 2 | E47: 2 | F47: 2 | G47: 2 | H47: 2 | I47: 2 | J47: 1 | K47: 1 | L47: 2 | M47: 2 | N47: 1 | O47: 1 | P47: 2 | Q47: 2 | R47: 2 | S47: 2 | T47: 2
B48: > aggregated overload | C48: =IF(C46>C47,C46-C47,0) -> 0 | D48: =IF((D46+C48)>D47,D46+C48-D47,0) -> 0 | E48: 0 | F48: 0 | G48: 0 | H48: 0 | I48: 0 | J48: 0 | K48: 0 | L48: 0 | M48: 0 | N48: 0 | O48: 1 | P48: 0 | Q48: 0 | R48: 0 | S48: 0 | T48: 0
B49: > load factor | C49: =C46/C47 -> 0 | D49: 0.5 | E49: 0 | F49: 1 | G49: 0.5 | H49: 0 | I49: 0 | J49: 0 | K49: 1 | L49: 0 | M49: 0 | N49: 0 | O49: 2 | P49: 0.5 | Q49: 0 | R49: 0 | S49: 0.5 | T49: 0 | U49: =AVERAGE(C49:T49) -> 0.3333333333
AA1973: =AVERAGE(C1973:Z1973) -> 
AA1985: =AVERAGE(C1985:Z1985) -> 
AA1997: =AVERAGE(C1997:Z1997) -> 
AA2009: =AVERAGE(C2009:Z2009) -> 

Sheet TBP%
A1: Team Balancing Plan
A2: ="Version: "&TEXT(TODAY(),"JJJJ-MM-TT") -> Version: 2023-03-12
A4: T_QA | B4: Quality Assurance (Michael Meier) | C4: =TEXT(2023,"0000")&"-"&TEXT(1,"00") -> 2023-01 | D4: =TEXT(2023,"0000")&"-"&TEXT(2,"00") -> 2023-02 | E4: =TEXT(2023,"0000")&"-"&TEXT(3,"00") -> 2023-03 | F4: =TEXT(2023,"0000")&"-"&TEXT(4,"00") -> 2023-04 | G4: =TEXT(2023,"0000")&"-"&TEXT(5,"00") -> 2023-05 | H4: =TEXT(2023,"0000")&"-"&TEXT(6,"00") -> 2023-06 | I4: =TEXT(2023,"0000")&"-"&TEXT(7,"00") -> 2023-07 | J4: =TEXT(2023,"0000")&"-"&TEXT(8,"00") -> 2023-08 | K4: =TEXT(2023,"0000")&"-"&TEXT(9,"00") -> 2023-09 | L4: =TEXT(2023,"0000")&"-"&TEXT(10,"00") -> 2023-10 | M4: =TEXT(2023,"0000")&"-"&TEXT(11,"00") -> 2023-11 | N4: =TEXT(2023,"0000")&"-"&TEXT(12,"00") -> 2023-12 | O4: =TEXT(2024,"0000")&"-"&TEXT(1,"00") -> 2024-01 | P4: =TEXT(2024,"0000")&"-"&TEXT(2,"00") -> 2024-02 | Q4: =TEXT(2024,"0000")&"-"&TEXT(3,"00") -> 2024-03 | R4: =TEXT(2024,"0000")&"-"&TEXT(4,"00") -> 2024-04 | S4: =TEXT(2024,"0000")&"-"&TEXT(5,"00") -> 2024-05 | T4: =TEXT(2024,"0000")&"-"&TEXT(6,"00") -> 2024-06
B5: Testprojekt #1 (PRJ_Test #1) | D5: 0.5443738471 | E5: 0.6275719581 | F5: 0.6870102638 | G5: 0.1387360533
B6: Testprojekt #2 (PRJ_Test #2) | E6: 0.3137859791 | F6: 0.3816723688 | G6: 0.6936802663 | H6: 0.687340716 | I6: 1.321295745 | J6: 0.3269980203
B7: Testprojekt #3 (PRJ_Test #3) | J7: 0.3269980203 | K7: 0.7162813778 | L7: 0.3335624063
B8: Testprojekt #4 (PRJ_Test #4) | L8: 0.5336998501 | M8: 0.6542954893 | N8: 0.7605459573 | O8: 0.1283831649
B9: Testprojekt #5 (PRJ_Test #5) | N9: 0.4225255318 | O9: 0.3209579123 | P9: 0.6532694379 | Q9: 0.7275046012 | R9: 0.9893263121 | S9: 0.368027366
B10: Testprojekt #6 (PRJ_Test #6) | R10: 0.3297754374 | S10: 0.736054732 | T10: 0.3637523006
A19: T_DEV | B19: Development (Hans Huber) | C19: =TEXT(2023,"0000")&"-"&TEXT(1,"00") -> 2023-01 | D19: =TEXT(2023,"0000")&"-"&TEXT(2,"00") -> 2023-02 | E19: =TEXT(2023,"0000")&"-"&TEXT(3,"00") -> 2023-03 | F19: =TEXT(2023,"0000")&"-"&TEXT(4,"00") -> 2023-04 | G19: =TEXT(2023,"0000")&"-"&TEXT(5,"00") -> 2023-05 | H19: =TEXT(2023,"0000")&"-"&TEXT(6,"00") -> 2023-06 | I19: =TEXT(2023,"0000")&"-"&TEXT(7,"00") -> 2023-07 | J19: =TEXT(2023,"0000")&"-"&TEXT(8,"00") -> 2023-08 | K19: =TEXT(2023,"0000")&"-"&TEXT(9,"00") -> 2023-09 | L19: =TEXT(2023,"0000")&"-"&TEXT(10,"00") -> 2023-10 | M19: =TEXT(2023,"0000")&"-"&TEXT(11,"00") -> 2023-11 | N19: =TEXT(2023,"0000")&"-"&TEXT(12,"00") -> 2023-12 | O19: =TEXT(2024,"0000")&"-"&TEXT(1,"00") -> 2024-01 | P19: =TEXT(2024,"0000")&"-"&TEXT(2,"00") -> 2024-02 | Q19: =TEXT(2024,"0000")&"-"&TEXT(3,"00") -> 2024-03 | R19: =TEXT(2024,"0000")&"-"&TEXT(4,"00") -> 2024-04 | S19: =TEXT(2024,"0000")&"-"&TEXT(5,"00") -> 2024-05 | T19: =TEXT(2024,"0000")&"-"&TEXT(6,"00") -> 2024-06
B20: Testprojekt #1 (PRJ_Test #1) | C20: 0.2160213679 | D20: 0.5508544881 | E20: 0.4064275538 | F20: 0.247178296 | G20: 0.04492405534
B21: Testprojekt #2 (PRJ_Test #2) | D21: 0.2203417953 | E21: 0.2032137769 | F21: 0.6179457399 | G21: 0.6738608301 | H21: 0.6677024099 | I21: 0.4278481461 | J21: 0.1058850732
B22: Testprojekt #3 (PRJ_Test #3) | J22: 0.2117701465 | K22: 0.2319387318 | L22: 0.2160213679
B23: Testprojekt #4 (PRJ_Test #4) | K23: 0.2319387318 | L23: 0.5400534197 | M23: 0.4237342216 | N23: 0.2736355825 | O23: 0.0415716915
B24: Testprojekt #5 (PRJ_Test #5) | M24: 0.2118671108 | N24: 0.2736355825 | O24: 0.5196461437 | P24: 0.6346045968 | Q24: 0.7067187555 | R24: 0.4271377094 | S24: 0.1191707661
B25: Testprojekt #6 (PRJ_Test #6) | R25: 0.2135688547 | S25: 0.2383415323 | T25: 0.2355729185
A34: T_PM | B34: Product Management (Franz Weber) | C34: =TEXT(2023,"0000")&"-"&TEXT(1,"00") -> 2023-01 | D34: =TEXT(2023,"0000")&"-"&TEXT(2,"00") -> 2023-02 | E34: =TEXT(2023,"0000")&"-"&TEXT(3,"00") -> 2023-03 | F34: =TEXT(2023,"0000")&"-"&TEXT(4,"00") -> 2023-04 | G34: =TEXT(2023,"0000")&"-"&TEXT(5,"00") -> 2023-05 | H34: =TEXT(2023,"0000")&"-"&TEXT(6,"00") -> 2023-06 | I34: =TEXT(2023,"0000")&"-"&TEXT(7,"00") -> 2023-07 | J34: =TEXT(2023,"0000")&"-"&TEXT(8,"00") -> 2023-08 | K34: =TEXT(2023,"0000")&"-"&TEXT(9,"00") -> 2023-09 | L34: =TEXT(2023,"0000")&"-"&TEXT(10,"00") -> 2023-10 | M34: =TEXT(2023,"0000")&"-"&TEXT(11,"00") -> 2023-11 | N34: =TEXT(2023,"0000")&"-"&TEXT(12,"00") -> 2023-12 | O34: =TEXT(2024,"0000")&"-"&TEXT(1,"00") -> 2024-01 | P34: =TEXT(2024,"0000")&"-"&TEXT(2,"00") -> 2024-02 | Q34: =TEXT(2024,"0000")&"-"&TEXT(3,"00") -> 2024-03 | R34: =TEXT(2024,"0000")&"-"&TEXT(4,"00") -> 2024-04 | S34: =TEXT(2024,"0000")&"-"&TEXT(5,"00") -> 2024-05 | T34: =TEXT(2024,"0000")&"-"&TEXT(6,"00") -> 2024-06
B35: Testprojekt #1 (PRJ_Test #1) | C35: 0.6804673089 | D35: 0.1156794425
B36: Testprojekt #2 (PRJ_Test #2) | D36: 0.8675958188 | E36: 0.5334361644 | F36: 0.3244215134 | H36: 0.1168479217 | I36: 0.1123101384
B37: Testprojekt #3 (PRJ_Test #3) | J37: 0.2779483172 | K37: 0.1217678342 | L37: 0.1134112181
B38: Testprojekt #4 (PRJ_Test #4) | K38: 0.7306070053 | L38: 0.1134112181
B39: Testprojekt #5 (PRJ_Test #5) | M39: 0.8342267489 | N39: 0.7182934041 | O39: 0.2728142255 | Q39: 0.1236757822 | R39: 0.1121236487
B40: Testprojekt #6 (PRJ_Test #6) | R40: 0.2803091218 | S40: 0.1251293044 | T40: 0.1236757822
A49: * VirtualDrum | B49: Virtual Team for Concept & Integration (Super Man) | C49: =TEXT(2023,"0000")&"-"&TEXT(1,"00") -> 2023-01 | D49: =TEXT(2023,"0000")&"-"&TEXT(2,"00") -> 2023-02 | E49: =TEXT(2023,"0000")&"-"&TEXT(3,"00") -> 2023-03 | F49: =TEXT(2023,"0000")&"-"&TEXT(4,"00") -> 2023-04 | G49: =TEXT(2023,"0000")&"-"&TEXT(5,"00") -> 2023-05 | H49: =TEXT(2023,"0000")&"-"&TEXT(6,"00") -> 2023-06 | I49: =TEXT(2023,"0000")&"-"&TEXT(7,"00") -> 2023-07 | J49: =TEXT(2023,"0000")&"-"&TEXT(8,"00") -> 2023-08 | K49: =TEXT(2023,"0000")&"-"&TEXT(9,"00") -> 2023-09 | L49: =TEXT(2023,"0000")&"-"&TEXT(10,"00") -> 2023-10 | M49: =TEXT(2023,"0000")&"-"&TEXT(11,"00") -> 2023-11 | N49: =TEXT(2023,"0000")&"-"&TEXT(12,"00") -> 2023-12 | O49: =TEXT(2024,"0000")&"-"&TEXT(1,"00") -> 2024-01 | P49: =TEXT(2024,"0000")&"-"&TEXT(2,"00") -> 2024-02 | Q49: =TEXT(2024,"0000")&"-"&TEXT(3,"00") -> 2024-03 | R49: =TEXT(2024,"0000")&"-"&TEXT(4,"00") -> 2024-04 | S49: =TEXT(2024,"0000")&"-"&TEXT(5,"00") -> 2024-05 | T49: =TEXT(2024,"0000")&"-"&TEXT(6,"00") -> 2024-06
B50: Testprojekt #1 (PRJ_Test #1) | D50: 0.5
B51: Testprojekt #2 (PRJ_Test #2) | F51: 1 | G51: 0.5
B52: Testprojekt #3 (PRJ_Test #3) | K52: 1
B53: Testprojekt #5 (PRJ_Test #5) | O53: 2 | P53: 0.5
B54: Testprojekt #6 (PRJ_Test #6) | S54: 0.5
AA1978: =AVERAGE(C1978:Z1978) -> 
AA1990: =AVERAGE(C1990:Z1990) -> 
AA2002: =AVERAGE(C2002:Z2002) -> 
AA2014: =AVERAGE(C2014:Z2014) -> 

Sheet Roadmap
A1: Roadmap
A2: ="Version: "&TEXT(TODAY(),"JJJJ-MM-TT") -> Version: 2023-03-12
C3: Constraint Entry/Exit Month
A4: PrjID | B4: Project | C4: EntryOffset | D4: ExitOffset | E4: =TEXT(2023,"0000")&"-"&TEXT(1,"00") -> 2023-01 | F4: =TEXT(2023,"0000")&"-"&TEXT(2,"00") -> 2023-02 | G4: =TEXT(2023,"0000")&"-"&TEXT(3,"00") -> 2023-03 | H4: =TEXT(2023,"0000")&"-"&TEXT(4,"00") -> 2023-04 | I4: =TEXT(2023,"0000")&"-"&TEXT(5,"00") -> 2023-05 | J4: =TEXT(2023,"0000")&"-"&TEXT(6,"00") -> 2023-06 | K4: =TEXT(2023,"0000")&"-"&TEXT(7,"00") -> 2023-07 | L4: =TEXT(2023,"0000")&"-"&TEXT(8,"00") -> 2023-08 | M4: =TEXT(2023,"0000")&"-"&TEXT(9,"00") -> 2023-09 | N4: =TEXT(2023,"0000")&"-"&TEXT(10,"00") -> 2023-10 | O4: =TEXT(2023,"0000")&"-"&TEXT(11,"00") -> 2023-11 | P4: =TEXT(2023,"0000")&"-"&TEXT(12,"00") -> 2023-12 | Q4: =TEXT(2024,"0000")&"-"&TEXT(1,"00") -> 2024-01 | R4: =TEXT(2024,"0000")&"-"&TEXT(2,"00") -> 2024-02 | S4: =TEXT(2024,"0000")&"-"&TEXT(3,"00") -> 2024-03 | T4: =TEXT(2024,"0000")&"-"&TEXT(4,"00") -> 2024-04 | U4: =TEXT(2024,"0000")&"-"&TEXT(5,"00") -> 2024-05 | V4: =TEXT(2024,"0000")&"-"&TEXT(6,"00") -> 2024-06
A5: PRJ_Test #1 | B5: Testprojekt #1 | C5: 1 | D5: 1 | E5: 22 | F5: 36 | G5: 30 | H5: 19 | I5: 4
A6: PRJ_Test #2 | B6: Testprojekt #2 | C6: 3 | D6: 4 | F6: 25 | G6: 25 | H6: 37 | I6: 41 | J6: 42 | K6: 42 | L6: 10
A7: PRJ_Test #3 | B7: Testprojekt #3 | C7: 8 | D7: 8 | L7: 20 | M7: 23 | N7: 17
A8: PRJ_Test #4 | B8: Testprojekt #4 | M8: 22 | N8: 35 | O8: 30 | P8: 19 | Q8: 4
A9: PRJ_Test #5 | B9: Testprojekt #5 | C9: 12 | D9: 13 | O9: 25 | P9: 25 | Q9: 37 | R9: 41 | S9: 42 | T9: 37 | U9: 10
A10: PRJ_Test #6 | B10: Testprojekt #6 | C10: 16 | D10: 16 | T10: 20 | U10: 23 | V10: 17

Sheet Tabelle1
A4: Project: Description | B4: Project: Priority | C4: Project: Project end date (End) | D4: Task: Task type | E4: Task: Description | F4: Task: Predecessor(s) | G4: Task: Fill color | H4: Task: Duration (d) | I4: Skill: Description | J4: Resource assignment: Units | K4: Resource assignment: Duration (d)
A5: PRJ_Andro Lion HS SL930 Projekt_025 | B5: 50 | D5: Stage | E5: Lead | G5: RGB(9F,C6,E1) | H5: 61
A6: PRJ_Andro Lion HS SL930 Projekt_025 | D6: VirtualDrum | E6: Critical | F6: Lead | G6: Yellow | H6: 81 | I6: ST_WRO | J6: 2 | K6: 81
A7: PRJ_Andro Lion HS SL930 Projekt_025 | D7: Stage | E7: Lag | F7: Critical | G7: RGB(92,D0,50) | H7: 8
A8: PRJ_BoSuLiTu&Co BS Projekt_022 | B8: 50 | D8: Stage | E8: Lead | G8: RGB(9F,C6,E1) | H8: 43
A9: PRJ_BoSuLiTu&Co BS Projekt_022 | D9: VirtualDrum | E9: Critical | F9: Lead | G9: Yellow | H9: 57 | I9: ST_WRO | J9: 2 | K9: 57
A10: PRJ_BoSuLiTu&Co BS Projekt_022 | D10: Stage | E10: Lag | F10: Critical | G10: RGB(92,D0,50) | H10: 6
A11: PRJ_Calypso Projekt_034 | B11: 50 | D11: Stage | E11: Lead | G11: RGB(9F,C6,E1) | H11: 31
A12: PRJ_Calypso Projekt_034 | D12: VirtualDrum | E12: Critical | F12: Lead | G12: Yellow | H12: 41 | I12: ST_WRO | J12: 2 | K12: 41
A13: PRJ_Calypso Projekt_034 | D13: Stage | E13: Lag | F13: Critical | G13: RGB(92,D0,50) | H13: 4
A14: PRJ_Comp Trans BCH to WRO Projekt_013 | B14: 50 | D14: Stage | E14: Lead | G14: RGB(9F,C6,E1) | H14: 34
A15: PRJ_Comp Trans BCH to WRO Projekt_013 | D15: VirtualDrum | E15: Critical | F15: Lead | G15: Yellow | H15: 45 | I15: ST_WRO | J15: 2 | K15: 45
A16: PRJ_Comp Trans BCH to WRO Projekt_013 | D16: Stage | E16: Lag | F16: Critical | G16: RGB(92,D0,50) | H16: 5
A17: PRJ_Coral HS Projekt_023 | B17: 50 | D17: Stage | E17: Lead | G17: RGB(9F,C6,E1) | H17: 76
A18: PRJ_Coral HS Projekt_023 | D18: VirtualDrum | E18: Critical | F18: Lead | G18: Yellow | H18: 101 | I18: ST_WRO | J18: 2 | K18: 101
A19: PRJ_Coral HS Projekt_023 | D19: Stage | E19: Lag | F19: Critical | G19: RGB(92,D0,50) | H19: 10
A20: PRJ_Einstein Rel. 2.1 Projekt_027 | B20: 50 | D20: Stage | E20: Lead | G20: RGB(9F,C6,E1) | H20: 4
A21: PRJ_Einstein Rel. 2.1 Projekt_027 | D21: VirtualDrum | E21: Critical | F21: Lead | G21: Yellow | H21: 5 | I21: ST_WRO | J21: 1 | K21: 5
A22: PRJ_Einstein Rel. 2.1 Projekt_027 | D22: Stage | E22: Lag | F22: Critical | G22: RGB(92,D0,50) | H22: 1
A23: PRJ_Einstein Rel. 2.2 Projekt_031 | B23: 50 | D23: Stage | E23: Lead | G23: RGB(9F,C6,E1) | H23: 55
A24: PRJ_Einstein Rel. 2.2 Projekt_031 | D24: VirtualDrum | E24: Critical | F24: Lead | G24: Yellow | H24: 73 | I24: ST_WRO | J24: 2 | K24: 73
A25: PRJ_Einstein Rel. 2.2 Projekt_031 | D25: Stage | E25: Lag | F25: Critical | G25: RGB(92,D0,50) | H25: 7

Sheet ProjectList
A1: Project List | N1: Version/Today
N2: 2023-02-21 | O2: =IF(today<TODAY(),"maybe this report is outdated - if you want to generate a up-to-date report change date to the current date","") -> maybe this report is outdated - if you want to generate a up-to-date report change date to the current date
A3: TBP-Start-Year | B3: 2023
A4: TBP-Start-Month | B4: 1
A5: TBP-Duration | B5: 18
A6: TBP-Active-Level | B6: 1 | C6: Active-Level of project has to be higher or equal | N6: execution management
I7: resulting project delimiter | N7: status | Q7: hint | S7: action
A8: Project-ID (Sheet) | B8: Project | C8: Start-Year | D8: Start-Month | E8: Active-Level | F8: Col | G8: GoTo | I8: Start | J8: Enter-Constr. | K8: Exit-Constr. | L8: End | N8: Date of Status | O8: Project Phase | P8: Remaining Working Days in Phase | Q8: Pay Attention | S8: Phase Overrun in Calendar Days | T8: Meassures to regain overspent time …
A9: PRJ_Test #1 | B9: Testprojekt #1 | C9: 2023 | D9: 1 | E9: 2 | G9: =HYPERLINK("#'"&A9&"'!A1","sheet") -> sheet | I9: =DATE(C9+INT(D9/12),MOD(D9,12),1) -> 2023-01-01 | J9: 2023-02-01 | K9: 2023-02-28 | L9: 2023-05-31 | N9: 2023-02-21 | O9: IC (in constraint) | P9: 10 | Q9: =GenerateMessageOutOfStatus(today,I9,J9,K9,L9,N9,O9,P9) -> Current Phase End exceeds planning by [7] days | S9: =IF(ISNUMBER(FIND("]",Q9)),VALUE(MID(Q9,FIND("[",Q9)+1,FIND("]",Q9)-FIND("[",Q9)-1)),"---") -> 7 | T9: Mr. Meier - we are looking for a technical new solution - i will show result in two days … root cause: one of our server crashed and we need a new one
A10: PRJ_Test #2 | B10: Testprojekt #2 | C10: 2023 | D10: 2 | E10: 2 | G10: sheet | I10: 2023-02-01 | J10: 2023-04-01 | K10: 2023-05-31 | L10: 2023-08-31 | N10: 2023-02-20 | O10: IC (in constraint) | P10: 0 | Q10: --- | S10: ---
A11: PRJ_Test #3 | B11: Testprojekt #3 | C11: 2023 | D11: 8 | E11: 2 | G11: sheet | I11: 2023-08-01 | J11: 2023-09-01 | K11: 2023-09-30 | L11: 2023-10-31 | P11: 0 | Q11: --- | S11: ---
A12: PRJ_Test #4 | B12: Testprojekt #4 | C12: 2023 | D12: 9 | E12: 1 | G12: sheet | I12: 2023-09-01 | L12: 2024-01-31 | P12: 0 | Q12: --- | S12: ---
A13: PRJ_Test #5 | B13: Testprojekt #5 | C13: 2023 | D13: 11 | E13: 1 | G13: sheet | I13: 2023-11-01 | J13: 2024-01-01 | K13: 2024-02-29 | L13: 2024-05-31 | P13: 0 | Q13: --- | S13: ---
A14: PRJ_Test #6 | B14: Testprojekt #6 | C14: 2023 | D14: 16 | E14: 1 | G14: sheet | I14: 2024-04-01 | J14: 2024-05-01 | K14: 2024-05-31 | L14: 2024-06-30 | P14: 0 | Q14: --- | S14: ---

Sheet TeamList
A1: Team-ID | B1: Team | C1: Team-Lead | D1: SkillClass | E1: average load | F1: aggregated load | H1: Line | I1: Notes | J1: Project Quota | K1: 2023-01 | L1: =IF(RIGHT(K1,2)="12",TEXT(VALUE(LEFT(K1,4))+1,"0")&"-01",LEFT(K1,4)&"-"&TEXT(VALUE(RIGHT(K1,2))+1,"00")) -> 2023-02 | M1: =IF(RIGHT(L1,2)="12",TEXT(VALUE(LEFT(L1,4))+1,"0")&"-01",LEFT(L1,4)&"-"&TEXT(VALUE(RIGHT(L1,2))+1,"00")) -> 2023-03 | N1: 2023-04 | O1: 2023-05 | P1: 2023-06 | Q1: 2023-07 | R1: 2023-08 | S1: 2023-09 | T1: 2023-10 | U1: 2023-11 | V1: 2023-12 | W1: 2024-01 | X1: 2024-02 | Y1: 2024-03 | Z1: 2024-04 | AA1: 2024-05 | AB1: 2024-06 | AC1: 2024-07
A2: T_QA | B2: Quality Assurance | C2: Michael Meier | D2: Quality | E2: 0.7826347286 | F2: 0 | H2: =ROW(A2) -> 2 | J2: 0.85 | K2: 1 | L2: =K2 -> 1 | M2: 1 | N2: 1 | O2: 1 | P2: 1 | Q2: 1 | R2: 1 | S2: 1 | T2: 1 | U2: 1 | V2: 1 | W2: 1 | X2: 1 | Y2: 1 | Z2: 1 | AA2: 1 | AB2: 1 | AC2: 1
A3: T_DEV | B3: Development | C3: Hans Huber | D3: Development | E3: 0.5629517442 | F3: 0 | H3: =ROW(A3) -> 3 | J3: 0.75 | K3: 3.5 | L3: =K3 -> 3.5 | M3: =L3 -> 3.5 | N3: =M3 -> 3.5 | O3: =N3 -> 3.5 | P3: =O3 -> 3.5 | Q3: =P3 -> 3.5 | R3: =Q3 -> 3.5 | S3: =R3 -> 3.5 | T3: =S3 -> 3.5 | U3: =T3 -> 3.5 | V3: =U3 -> 3.5 | W3: =V3 -> 3.5 | X3: =W3 -> 3.5 | Y3: =X3 -> 3.5 | Z3: =Y3 -> 3.5 | AA3: =Z3 -> 3.5 | AB3: =AA3 -> 3.5 | AC3: =AB3 -> 3.5
A4: T_PM | B4: Product Management | C4: Franz Weber | D4: ProductManagement | E4: 0.3721195511 | F4: 0 | H4: =ROW(A4) -> 4 | J4: 1 | K4: 1 | L4: =K4 -> 1 | M4: 1 | N4: 1 | O4: 1 | P4: 1 | Q4: 1 | R4: 1 | S4: 1 | T4: 1 | U4: 1 | V4: 1 | W4: 1 | X4: 1 | Y4: 1 | Z4: 1 | AA4: 1 | AB4: 1 | AC4: 1
A5: * VirtualDrum | B5: Virtual Team for Concept & Integration | C5: Super Man | D5: VirtualDrum | E5: 0.3333333333 | F5: 0 | H5: 5 | J5: 1 | K5: 2 | L5: =K5 -> 2 | M5: =L5 -> 2 | N5: 2 | O5: 2 | P5: 2 | Q5: 2 | R5: 2 | S5: 2 | T5: =S5 -> 2 | U5: 2 | V5: 2 | W5: 2 | X5: 2 | Y5: 2 | Z5: 2 | AA5: 2 | AB5: 2 | AC5: 2

Sheet CapacityData
A1: Team-ID | B1: Year | C1: Month | D1: Capacity | F1: Sort Order (Line) | G1: Working Days per Month | H1: Project Quota for Team | I1: Offset in FTE-Table in Teamlist | J1: FTE for Team for Month | L1: ListOfAll SkillClasses
A2: T_PM | B2: =VALUE(LEFT(TeamList!K1,4)) -> 2023 | C2: =VALUE(RIGHT(TeamList!K1,2)) -> 1 | D2: =G2*H2*J2 -> 17.63493976 | F2: =VLOOKUP(A2,TeamList!A:I,8,FALSE) -> 4 | G2: =VLOOKUP(B2&"-"&TEXT(C2,"00"),CapacityModel!A:G,7,FALSE) -> 17.63493976 | H2: =VLOOKUP(A2,TeamList!A:K,10,FALSE) -> 1 | I2: =(B2*12+C2-1)-(VALUE(LEFT(TeamList!$K$1,4))*12+VALUE(RIGHT(TeamList!$K$1,2))-1) -> 0 | J2: =INDEX(TeamList!A:BY,VLOOKUP(A2,TeamList!A:K,8,FALSE),11+I2) -> 1 | L2: C-Level/CxO
A3: T_PM | B3: =IF(C2=12,B2+1,B2) -> 2023 | C3: =IF(C2=12,1,C2+1) -> 2 | D3: =G3*H3*J3 -> 17.28915663 | F3: =VLOOKUP(A3,TeamList!A:I,8,FALSE) -> 4 | G3: =VLOOKUP(B3&"-"&TEXT(C3,"00"),CapacityModel!A:G,7,FALSE) -> 17.28915663 | H3: =VLOOKUP(A3,TeamList!A:K,10,FALSE) -> 1 | I3: =(B3*12+C3-1)-(VALUE(LEFT(TeamList!$K$1,4))*12+VALUE(RIGHT(TeamList!$K$1,2))-1) -> 1 | J3: =INDEX(TeamList!A:BY,VLOOKUP(A3,TeamList!A:K,8,FALSE),11+I3) -> 1 | L3: Marketing
A4: T_PM | B4: =IF(C3=12,B3+1,B3) -> 2023 | C4: =IF(C3=12,1,C3+1) -> 3 | D4: 18.74638554 | F4: =VLOOKUP(A4,TeamList!A:I,8,FALSE) -> 4 | G4: =VLOOKUP(B4&"-"&TEXT(C4,"00"),CapacityModel!A:G,7,FALSE) -> 18.74638554 | H4: =VLOOKUP(A4,TeamList!A:K,10,FALSE) -> 1 | I4: =(B4*12+C4-1)-(VALUE(LEFT(TeamList!$K$1,4))*12+VALUE(RIGHT(TeamList!$K$1,2))-1) -> 2 | J4: =INDEX(TeamList!A:BY,VLOOKUP(A4,TeamList!A:K,8,FALSE),11+I4) -> 1 | L4: Sales
A5: T_PM | B5: 2023 | C5: 4 | D5: 15.41204819 | F5: =VLOOKUP(A5,TeamList!A:I,8,FALSE) -> 4 | G5: =VLOOKUP(B5&"-"&TEXT(C5,"00"),CapacityModel!A:G,7,FALSE) -> 15.41204819 | H5: =VLOOKUP(A5,TeamList!A:K,10,FALSE) -> 1 | I5: =(B5*12+C5-1)-(VALUE(LEFT(TeamList!$K$1,4))*12+VALUE(RIGHT(TeamList!$K$1,2))-1) -> 3 | J5: =INDEX(TeamList!A:BY,VLOOKUP(A5,TeamList!A:K,8,FALSE),11+I5) -> 1 | L5: FunctionalDepartment
A6: T_PM | B6: 2023 | C6: 5 | D6: 16.95983936 | F6: =VLOOKUP(A6,TeamList!A:I,8,FALSE) -> 4 | G6: =VLOOKUP(B6&"-"&TEXT(C6,"00"),CapacityModel!A:G,7,FALSE) -> 16.95983936 | H6: =VLOOKUP(A6,TeamList!A:K,10,FALSE) -> 1 | I6: =(B6*12+C6-1)-(VALUE(LEFT(TeamList!$K$1,4))*12+VALUE(RIGHT(TeamList!$K$1,2))-1) -> 4 | J6: =INDEX(TeamList!A:BY,VLOOKUP(A6,TeamList!A:K,8,FALSE),11+I6) -> 1 | L6: ProductManagement
A7: T_PM | B7: 2023 | C7: 6 | D7: 17.11626506 | F7: =VLOOKUP(A7,TeamList!A:I,8,FALSE) -> 4 | G7: =VLOOKUP(B7&"-"&TEXT(C7,"00"),CapacityModel!A:G,7,FALSE) -> 17.11626506 | H7: =VLOOKUP(A7,TeamList!A:K,10,FALSE) -> 1 | I7: =(B7*12+C7-1)-(VALUE(LEFT(TeamList!$K$1,4))*12+VALUE(RIGHT(TeamList!$K$1,2))-1) -> 5 | J7: =INDEX(TeamList!A:BY,VLOOKUP(A7,TeamList!A:K,8,FALSE),11+I7) -> 1 | L7: ProjectManagement
A8: T_PM | B8: 2023 | C8: 7 | D8: 17.80783133 | F8: =VLOOKUP(A8,TeamList!A:I,8,FALSE) -> 4 | G8: =VLOOKUP(B8&"-"&TEXT(C8,"00"),CapacityModel!A:G,7,FALSE) -> 17.80783133 | H8: =VLOOKUP(A8,TeamList!A:K,10,FALSE) -> 1 | I8: =(B8*12+C8-1)-(VALUE(LEFT(TeamList!$K$1,4))*12+VALUE(RIGHT(TeamList!$K$1,2))-1) -> 6 | J8: =INDEX(TeamList!A:BY,VLOOKUP(A8,TeamList!A:K,8,FALSE),11+I8) -> 1 | L8: Development
A9: T_PM | B9: 2023 | C9: 8 | D9: 17.98895582 | F9: =VLOOKUP(A9,TeamList!A:I,8,FALSE) -> 4 | G9: =VLOOKUP(B9&"-"&TEXT(C9,"00"),CapacityModel!A:G,7,FALSE) -> 17.98895582 | H9: =VLOOKUP(A9,TeamList!A:K,10,FALSE) -> 1 | I9: =(B9*12+C9-1)-(VALUE(LEFT(TeamList!$K$1,4))*12+VALUE(RIGHT(TeamList!$K$1,2))-1) -> 7 | J9: =INDEX(TeamList!A:BY,VLOOKUP(A9,TeamList!A:K,8,FALSE),11+I9) -> 1 | L9: ElectronikDevelopment
A10: T_PM | B10: 2023 | C10: 9 | D10: 16.4246988 | F10: =VLOOKUP(A10,TeamList!A:I,8,FALSE) -> 4 | G10: =VLOOKUP(B10&"-"&TEXT(C10,"00"),CapacityModel!A:G,7,FALSE) -> 16.4246988 | H10: =VLOOKUP(A10,TeamList!A:K,10,FALSE) -> 1 | I10: =(B10*12+C10-1)-(VALUE(LEFT(TeamList!$K$1,4))*12+VALUE(RIGHT(TeamList!$K$1,2))-1) -> 8 | J10: =INDEX(TeamList!A:BY,VLOOKUP(A10,TeamList!A:K,8,FALSE),11+I10) -> 1 | L10: MechanicDevelopment
A11: T_PM | B11: 2023 | C11: 10 | D11: 17.63493976 | F11: =VLOOKUP(A11,TeamList!A:I,8,FALSE) -> 4 | G11: =VLOOKUP(B11&"-"&TEXT(C11,"00"),CapacityModel!A:G,7,FALSE) -> 17.63493976 | H11: =VLOOKUP(A11,TeamList!A:K,10,FALSE) -> 1 | I11: =(B11*12+C11-1)-(VALUE(LEFT(TeamList!$K$1,4))*12+VALUE(RIGHT(TeamList!$K$1,2))-1) -> 9 | J11: =INDEX(TeamList!A:BY,VLOOKUP(A11,TeamList!A:K,8,FALSE),11+I11) -> 1 | L11: SoftwareDevelopment
A12: T_PM | B12: 2023 | C12: 11 | D12: 17.98072289 | F12: =VLOOKUP(A12,TeamList!A:I,8,FALSE) -> 4 | G12: =VLOOKUP(B12&"-"&TEXT(C12,"00"),CapacityModel!A:G,7,FALSE) -> 17.98072289 | H12: =VLOOKUP(A12,TeamList!A:K,10,FALSE) -> 1 | I12: =(B12*12+C12-1)-(VALUE(LEFT(TeamList!$K$1,4))*12+VALUE(RIGHT(TeamList!$K$1,2))-1) -> 10 | J12: =INDEX(TeamList!A:BY,VLOOKUP(A12,TeamList!A:K,8,FALSE),11+I12) -> 1 | L12: Quality
A13: T_PM | B13: 2023 | C13: 12 | D13: 13.92188755 | F13: =VLOOKUP(A13,TeamList!A:I,8,FALSE) -> 4 | G13: =VLOOKUP(B13&"-"&TEXT(C13,"00"),CapacityModel!A:G,7,FALSE) -> 13.92188755 | H13: =VLOOKUP(A13,TeamList!A:K,10,FALSE) -> 1 | I13: =(B13*12+C13-1)-(VALUE(LEFT(TeamList!$K$1,4))*12+VALUE(RIGHT(TeamList!$K$1,2))-1) -> 11 | J13: =INDEX(TeamList!A:BY,VLOOKUP(A13,TeamList!A:K,8,FALSE),11+I13) -> 1 | L13: Industrialization
A14: T_PM | B14: 2024 | C14: 1 | D14: 18.32749004 | F14: =VLOOKUP(A14,TeamList!A:I,8,FALSE) -> 4 | G14: =VLOOKUP(B14&"-"&TEXT(C14,"00"),CapacityModel!A:G,7,FALSE) -> 18.32749004 | H14: =VLOOKUP(A14,TeamList!A:K,10,FALSE) -> 1 | I14: =(B14*12+C14-1)-(VALUE(LEFT(TeamList!$K$1,4))*12+VALUE(RIGHT(TeamList!$K$1,2))-1) -> 12 | J14: =INDEX(TeamList!A:BY,VLOOKUP(A14,TeamList!A:K,8,FALSE),11+I14) -> 1 | L14: Production
A15: T_PM | B15: 2024 | C15: 2 | D15: 18.00896414 | F15: =VLOOKUP(A15,TeamList!A:I,8,FALSE) -> 4 | G15: =VLOOKUP(B15&"-"&TEXT(C15,"00"),CapacityModel!A:G,7,FALSE) -> 18.00896414 | H15: =VLOOKUP(A15,TeamList!A:K,10,FALSE) -> 1 | I15: =(B15*12+C15-1)-(VALUE(LEFT(TeamList!$K$1,4))*12+VALUE(RIGHT(TeamList!$K$1,2))-1) -> 13 | J15: =INDEX(TeamList!A:BY,VLOOKUP(A15,TeamList!A:K,8,FALSE),11+I15) -> 1 | L15: Support/CustomerCare
A16: T_PM | B16: 2024 | C16: 3 | D16: 16.17131474 | F16: =VLOOKUP(A16,TeamList!A:I,8,FALSE) -> 4 | G16: =VLOOKUP(B16&"-"&TEXT(C16,"00"),CapacityModel!A:G,7,FALSE) -> 16.17131474 | H16: =VLOOKUP(A16,TeamList!A:K,10,FALSE) -> 1 | I16: =(B16*12+C16-1)-(VALUE(LEFT(TeamList!$K$1,4))*12+VALUE(RIGHT(TeamList!$K$1,2))-1) -> 14 | J16: =INDEX(TeamList!A:BY,VLOOKUP(A16,TeamList!A:K,8,FALSE),11+I16) -> 1 | L16: Purchase
A17: T_PM | B17: 2024 | C17: 4 | D17: 17.8374502 | F17: =VLOOKUP(A17,TeamList!A:I,8,FALSE) -> 4 | G17: =VLOOKUP(B17&"-"&TEXT(C17,"00"),CapacityModel!A:G,7,FALSE) -> 17.8374502 | H17: =VLOOKUP(A17,TeamList!A:K,10,FALSE) -> 1 | I17: =(B17*12+C17-1)-(VALUE(LEFT(TeamList!$K$1,4))*12+VALUE(RIGHT(TeamList!$K$1,2))-1) -> 15 | J17: =INDEX(TeamList!A:BY,VLOOKUP(A17,TeamList!A:K,8,FALSE),11+I17) -> 1 | L17: SupplyChain/Logistics
A18: T_PM | B18: 2024 | C18: 5 | D18: 15.98346614 | F18: =VLOOKUP(A18,TeamList!A:I,8,FALSE) -> 4 | G18: =VLOOKUP(B18&"-"&TEXT(C18,"00"),CapacityModel!A:G,7,FALSE) -> 15.98346614 | H18: =VLOOKUP(A18,TeamList!A:K,10,FALSE) -> 1 | I18: =(B18*12+C18-1)-(VALUE(LEFT(TeamList!$K$1,4))*12+VALUE(RIGHT(TeamList!$K$1,2))-1) -> 16 | J18: =INDEX(TeamList!A:BY,VLOOKUP(A18,TeamList!A:K,8,FALSE),11+I18) -> 1 | L18: HumanRessources
A19: T_PM | B19: 2024 | C19: 6 | D19: 16.17131474 | F19: =VLOOKUP(A19,TeamList!A:I,8,FALSE) -> 4 | G19: =VLOOKUP(B19&"-"&TEXT(C19,"00"),CapacityModel!A:G,7,FALSE) -> 16.17131474 | H19: =VLOOKUP(A19,TeamList!A:K,10,FALSE) -> 1 | I19: =(B19*12+C19-1)-(VALUE(LEFT(TeamList!$K$1,4))*12+VALUE(RIGHT(TeamList!$K$1,2))-1) -> 17 | J19: =INDEX(TeamList!A:BY,VLOOKUP(A19,TeamList!A:K,8,FALSE),11+I19) -> 1 | L19: Controlling
A20: T_DEV | B20: =B2 -> 2023 | C20: =C2 -> 1 | D20: 46.29171687 | F20: =VLOOKUP(A20,TeamList!A:I,8,FALSE) -> 3 | G20: =VLOOKUP(B20&"-"&TEXT(C20,"00"),CapacityModel!A:G,7,FALSE) -> 17.63493976 | H20: =VLOOKUP(A20,TeamList!A:K,10,FALSE) -> 0.75 | I20: =(B20*12+C20-1)-(VALUE(LEFT(TeamList!$K$1,4))*12+VALUE(RIGHT(TeamList!$K$1,2))-1) -> 0 | J20: =INDEX(TeamList!A:BY,VLOOKUP(A20,TeamList!A:K,8,FALSE),11+I20) -> 3.5 | L20: Compliance
A21: T_DEV | B21: =B3 -> 2023 | C21: 2 | D21: 45.38403614 | F21: =VLOOKUP(A21,TeamList!A:I,8,FALSE) -> 3 | G21: =VLOOKUP(B21&"-"&TEXT(C21,"00"),CapacityModel!A:G,7,FALSE) -> 17.28915663 | H21: =VLOOKUP(A21,TeamList!A:K,10,FALSE) -> 0.75 | I21: =(B21*12+C21-1)-(VALUE(LEFT(TeamList!$K$1,4))*12+VALUE(RIGHT(TeamList!$K$1,2))-1) -> 1 | J21: =INDEX(TeamList!A:BY,VLOOKUP(A21,TeamList!A:K,8,FALSE),11+I21) -> 3.5 | L21: Legal
A22: T_DEV | B22: =B4 -> 2023 | C22: 3 | D22: 49.20926205 | F22: =VLOOKUP(A22,TeamList!A:I,8,FALSE) -> 3 | G22: =VLOOKUP(B22&"-"&TEXT(C22,"00"),CapacityModel!A:G,7,FALSE) -> 18.74638554 | H22: =VLOOKUP(A22,TeamList!A:K,10,FALSE) -> 0.75 | I22: =(B22*12+C22-1)-(VALUE(LEFT(TeamList!$K$1,4))*12+VALUE(RIGHT(TeamList!$K$1,2))-1) -> 2 | J22: =INDEX(TeamList!A:BY,VLOOKUP(A22,TeamList!A:K,8,FALSE),11+I22) -> 3.5 | L22: VirtualDrum
A23: T_DEV | B23: =B5 -> 2023 | C23: 4 | D23: 40.45662651 | F23: =VLOOKUP(A23,TeamList!A:I,8,FALSE) -> 3 | G23: =VLOOKUP(B23&"-"&TEXT(C23,"00"),CapacityModel!A:G,7,FALSE) -> 15.41204819 | H23: =VLOOKUP(A23,TeamList!A:K,10,FALSE) -> 0.75 | I23: =(B23*12+C23-1)-(VALUE(LEFT(TeamList!$K$1,4))*12+VALUE(RIGHT(TeamList!$K$1,2))-1) -> 3 | J23: =INDEX(TeamList!A:BY,VLOOKUP(A23,TeamList!A:K,8,FALSE),11+I23) -> 3.5
A24: T_DEV | B24: =B6 -> 2023 | C24: 5 | D24: 44.51957831 | F24: =VLOOKUP(A24,TeamList!A:I,8,FALSE) -> 3 | G24: =VLOOKUP(B24&"-"&TEXT(C24,"00"),CapacityModel!A:G,7,FALSE) -> 16.95983936 | H24: =VLOOKUP(A24,TeamList!A:K,10,FALSE) -> 0.75 | I24: =(B24*12+C24-1)-(VALUE(LEFT(TeamList!$K$1,4))*12+VALUE(RIGHT(TeamList!$K$1,2))-1) -> 4 | J24: =INDEX(TeamList!A:BY,VLOOKUP(A24,TeamList!A:K,8,FALSE),11+I24) -> 3.5
A25: T_DEV | B25: =B7 -> 2023 | C25: 6 | D25: 44.93019578 | F25: =VLOOKUP(A25,TeamList!A:I,8,FALSE) -> 3 | G25: =VLOOKUP(B25&"-"&TEXT(C25,"00"),CapacityModel!A:G,7,FALSE) -> 17.11626506 | H25: =VLOOKUP(A25,TeamList!A:K,10,FALSE) -> 0.75 | I25: =(B25*12+C25-1)-(VALUE(LEFT(TeamList!$K$1,4))*12+VALUE(RIGHT(TeamList!$K$1,2))-1) -> 5 | J25: =INDEX(TeamList!A:BY,VLOOKUP(A25,TeamList!A:K,8,FALSE),11+I25) -> 3.5
A26: T_DEV | B26: =B8 -> 2023 | C26: 7 | D26: 46.74555723 | F26: =VLOOKUP(A26,TeamList!A:I,8,FALSE) -> 3 | G26: =VLOOKUP(B26&"-"&TEXT(C26,"00"),CapacityModel!A:G,7,FALSE) -> 17.80783133 | H26: =VLOOKUP(A26,TeamList!A:K,10,FALSE) -> 0.75 | I26: =(B26*12+C26-1)-(VALUE(LEFT(TeamList!$K$1,4))*12+VALUE(RIGHT(TeamList!$K$1,2))-1) -> 6 | J26: =INDEX(TeamList!A:BY,VLOOKUP(A26,TeamList!A:K,8,FALSE),11+I26) -> 3.5
A27: T_DEV | B27: =B9 -> 2023 | C27: 8 | D27: 47.22100904 | F27: =VLOOKUP(A27,TeamList!A:I,8,FALSE) -> 3 | G27: =VLOOKUP(B27&"-"&TEXT(C27,"00"),CapacityModel!A:G,7,FALSE) -> 17.98895582 | H27: =VLOOKUP(A27,TeamList!A:K,10,FALSE) -> 0.75 | I27: =(B27*12+C27-1)-(VALUE(LEFT(TeamList!$K$1,4))*12+VALUE(RIGHT(TeamList!$K$1,2))-1) -> 7 | J27: =INDEX(TeamList!A:BY,VLOOKUP(A27,TeamList!A:K,8,FALSE),11+I27) -> 3.5
A28: T_DEV | B28: =B10 -> 2023 | C28: 9 | D28: 43.11483434 | F28: =VLOOKUP(A28,TeamList!A:I,8,FALSE) -> 3 | G28: =VLOOKUP(B28&"-"&TEXT(C28,"00"),CapacityModel!A:G,7,FALSE) -> 16.4246988 | H28: =VLOOKUP(A28,TeamList!A:K,10,FALSE) -> 0.75 | I28: =(B28*12+C28-1)-(VALUE(LEFT(TeamList!$K$1,4))*12+VALUE(RIGHT(TeamList!$K$1,2))-1) -> 8 | J28: =INDEX(TeamList!A:BY,VLOOKUP(A28,TeamList!A:K,8,FALSE),11+I28) -> 3.5
A29: T_DEV | B29: =B11 -> 2023 | C29: 10 | D29: 46.29171687 | F29: =VLOOKUP(A29,TeamList!A:I,8,FALSE) -> 3 | G29: =VLOOKUP(B29&"-"&TEXT(C29,"00"),CapacityModel!A:G,7,FALSE) -> 17.63493976 | H29: =VLOOKUP(A29,TeamList!A:K,10,FALSE) -> 0.75 | I29: =(B29*12+C29-1)-(VALUE(LEFT(TeamList!$K$1,4))*12+VALUE(RIGHT(TeamList!$K$1,2))-1) -> 9 | J29: =INDEX(TeamList!A:BY,VLOOKUP(A29,TeamList!A:K,8,FALSE),11+I29) -> 3.5
A30: T_DEV | B30: =B12 -> 2023 | C30: 11 | D30: 47.19939759 | F30: =VLOOKUP(A30,TeamList!A:I,8,FALSE) -> 3 | G30: =VLOOKUP(B30&"-"&TEXT(C30,"00"),CapacityModel!A:G,7,FALSE) -> 17.98072289 | H30: =VLOOKUP(A30,TeamList!A:K,10,FALSE) -> 0.75 | I30: =(B30*12+C30-1)-(VALUE(LEFT(TeamList!$K$1,4))*12+VALUE(RIGHT(TeamList!$K$1,2))-1) -> 10 | J30: =INDEX(TeamList!A:BY,VLOOKUP(A30,TeamList!A:K,8,FALSE),11+I30) -> 3.5
A31: T_DEV | B31: =B13 -> 2023 | C31: 12 | D31: 36.54495482 | F31: =VLOOKUP(A31,TeamList!A:I,8,FALSE) -> 3 | G31: =VLOOKUP(B31&"-"&TEXT(C31,"00"),CapacityModel!A:G,7,FALSE) -> 13.92188755 | H31: =VLOOKUP(A31,TeamList!A:K,10,FALSE) -> 0.75 | I31: =(B31*12+C31-1)-(VALUE(LEFT(TeamList!$K$1,4))*12+VALUE(RIGHT(TeamList!$K$1,2))-1) -> 11 | J31: =INDEX(TeamList!A:BY,VLOOKUP(A31,TeamList!A:K,8,FALSE),11+I31) -> 3.5
A32: T_DEV | B32: =B14 -> 2024 | C32: 1 | D32: 48.10966135 | F32: =VLOOKUP(A32,TeamList!A:I,8,FALSE) -> 3 | G32: =VLOOKUP(B32&"-"&TEXT(C32,"00"),CapacityModel!A:G,7,FALSE) -> 18.32749004 | H32: =VLOOKUP(A32,TeamList!A:K,10,FALSE) -> 0.75 | I32: =(B32*12+C32-1)-(VALUE(LEFT(TeamList!$K$1,4))*12+VALUE(RIGHT(TeamList!$K$1,2))-1) -> 12 | J32: =INDEX(TeamList!A:BY,VLOOKUP(A32,TeamList!A:K,8,FALSE),11+I32) -> 3.5
A33: T_DEV | B33: =B15 -> 2024 | C33: 2 | D33: 47.27353088 | F33: =VLOOKUP(A33,TeamList!A:I,8,FALSE) -> 3 | G33: =VLOOKUP(B33&"-"&TEXT(C33,"00"),CapacityModel!A:G,7,FALSE) -> 18.00896414 | H33: =VLOOKUP(A33,TeamList!A:K,10,FALSE) -> 0.75 | I33: =(B33*12+C33-1)-(VALUE(LEFT(TeamList!$K$1,4))*12+VALUE(RIGHT(TeamList!$K$1,2))-1) -> 13 | J33: =INDEX(TeamList!A:BY,VLOOKUP(A33,TeamList!A:K,8,FALSE),11+I33) -> 3.5
A34: T_DEV | B34: =B16 -> 2024 | C34: 3 | D34: 42.4497012 | F34: =VLOOKUP(A34,TeamList!A:I,8,FALSE) -> 3 | G34: =VLOOKUP(B34&"-"&TEXT(C34,"00"),CapacityModel!A:G,7,FALSE) -> 16.17131474 | H34: =VLOOKUP(A34,TeamList!A:K,10,FALSE) -> 0.75 | I34: =(B34*12+C34-1)-(VALUE(LEFT(TeamList!$K$1,4))*12+VALUE(RIGHT(TeamList!$K$1,2))-1) -> 14 | J34: =INDEX(TeamList!A:BY,VLOOKUP(A34,TeamList!A:K,8,FALSE),11+I34) -> 3.5
A35: T_DEV | B35: =B17 -> 2024 | C35: 4 | D35: 46.82330677 | F35: =VLOOKUP(A35,TeamList!A:I,8,FALSE) -> 3 | G35: =VLOOKUP(B35&"-"&TEXT(C35,"00"),CapacityModel!A:G,7,FALSE) -> 17.8374502 | H35: =VLOOKUP(A35,TeamList!A:K,10,FALSE) -> 0.75 | I35: =(B35*12+C35-1)-(VALUE(LEFT(TeamList!$K$1,4))*12+VALUE(RIGHT(TeamList!$K$1,2))-1) -> 15 | J35: =INDEX(TeamList!A:BY,VLOOKUP(A35,TeamList!A:K,8,FALSE),11+I35) -> 3.5
A36: T_DEV | B36: =B18 -> 2024 | C36: 5 | D36: 41.95659861 | F36: =VLOOKUP(A36,TeamList!A:I,8,FALSE) -> 3 | G36: =VLOOKUP(B36&"-"&TEXT(C36,"00"),CapacityModel!A:G,7,FALSE) -> 15.98346614 | H36: =VLOOKUP(A36,TeamList!A:K,10,FALSE) -> 0.75 | I36: =(B36*12+C36-1)-(VALUE(LEFT(TeamList!$K$1,4))*12+VALUE(RIGHT(TeamList!$K$1,2))-1) -> 16 | J36: =INDEX(TeamList!A:BY,VLOOKUP(A36,TeamList!A:K,8,FALSE),11+I36) -> 3.5
A37: T_DEV | B37: =B19 -> 2024 | C37: 6 | D37: 42.4497012 | F37: =VLOOKUP(A37,TeamList!A:I,8,FALSE) -> 3 | G37: =VLOOKUP(B37&"-"&TEXT(C37,"00"),CapacityModel!A:G,7,FALSE) -> 16.17131474 | H37: =VLOOKUP(A37,TeamList!A:K,10,FALSE) -> 0.75 | I37: =(B37*12+C37-1)-(VALUE(LEFT(TeamList!$K$1,4))*12+VALUE(RIGHT(TeamList!$K$1,2))-1) -> 17 | J37: =INDEX(TeamList!A:BY,VLOOKUP(A37,TeamList!A:K,8,FALSE),11+I37) -> 3.5
A38: T_QA | B38: =B2 -> 2023 | C38: =C2 -> 1 | D38: 14.9896988 | F38: =VLOOKUP(A38,TeamList!A:I,8,FALSE) -> 2 | G38: =VLOOKUP(B38&"-"&TEXT(C38,"00"),CapacityModel!A:G,7,FALSE) -> 17.63493976 | H38: =VLOOKUP(A38,TeamList!A:K,10,FALSE) -> 0.85 | I38: =(B38*12+C38-1)-(VALUE(LEFT(TeamList!$K$1,4))*12+VALUE(RIGHT(TeamList!$K$1,2))-1) -> 0 | J38: =INDEX(TeamList!A:BY,VLOOKUP(A38,TeamList!A:K,8,FALSE),11+I38) -> 1
A39: T_QA | B39: =B3 -> 2023 | C39: 2 | D39: 14.69578313 | F39: =VLOOKUP(A39,TeamList!A:I,8,FALSE) -> 2 | G39: =VLOOKUP(B39&"-"&TEXT(C39,"00"),CapacityModel!A:G,7,FALSE) -> 17.28915663 | H39: =VLOOKUP(A39,TeamList!A:K,10,FALSE) -> 0.85 | I39: =(B39*12+C39-1)-(VALUE(LEFT(TeamList!$K$1,4))*12+VALUE(RIGHT(TeamList!$K$1,2))-1) -> 1 | J39: =INDEX(TeamList!A:BY,VLOOKUP(A39,TeamList!A:K,8,FALSE),11+I39) -> 1
A40: T_QA | B40: =B4 -> 2023 | C40: 3 | D40: 15.93442771 | F40: =VLOOKUP(A40,TeamList!A:I,8,FALSE) -> 2 | G40: =VLOOKUP(B40&"-"&TEXT(C40,"00"),CapacityModel!A:G,7,FALSE) -> 18.74638554 | H40: =VLOOKUP(A40,TeamList!A:K,10,FALSE) -> 0.85 | I40: =(B40*12+C40-1)-(VALUE(LEFT(TeamList!$K$1,4))*12+VALUE(RIGHT(TeamList!$K$1,2))-1) -> 2 | J40: =INDEX(TeamList!A:BY,VLOOKUP(A40,TeamList!A:K,8,FALSE),11+I40) -> 1
A41: T_QA | B41: =B5 -> 2023 | C41: 4 | D41: 13.10024096 | F41: =VLOOKUP(A41,TeamList!A:I,8,FALSE) -> 2 | G41: =VLOOKUP(B41&"-"&TEXT(C41,"00"),CapacityModel!A:G,7,FALSE) -> 15.41204819 | H41: =VLOOKUP(A41,TeamList!A:K,10,FALSE) -> 0.85 | I41: =(B41*12+C41-1)-(VALUE(LEFT(TeamList!$K$1,4))*12+VALUE(RIGHT(TeamList!$K$1,2))-1) -> 3 | J41: =INDEX(TeamList!A:BY,VLOOKUP(A41,TeamList!A:K,8,FALSE),11+I41) -> 1
A42: T_QA | B42: =B6 -> 2023 | C42: 5 | D42: 14.41586345 | F42: =VLOOKUP(A42,TeamList!A:I,8,FALSE) -> 2 | G42: =VLOOKUP(B42&"-"&TEXT(C42,"00"),CapacityModel!A:G,7,FALSE) -> 16.95983936 | H42: =VLOOKUP(A42,TeamList!A:K,10,FALSE) -> 0.85 | I42: =(B42*12+C42-1)-(VALUE(LEFT(TeamList!$K$1,4))*12+VALUE(RIGHT(TeamList!$K$1,2))-1) -> 4 | J42: =INDEX(TeamList!A:BY,VLOOKUP(A42,TeamList!A:K,8,FALSE),11+I42) -> 1
A43: T_QA | B43: =B7 -> 2023 | C43: 6 | D43: 14.5488253 | F43: =VLOOKUP(A43,TeamList!A:I,8,FALSE) -> 2 | G43: =VLOOKUP(B43&"-"&TEXT(C43,"00"),CapacityModel!A:G,7,FALSE) -> 17.11626506 | H43: =VLOOKUP(A43,TeamList!A:K,10,FALSE) -> 0.85 | I43: =(B43*12+C43-1)-(VALUE(LEFT(TeamList!$K$1,4))*12+VALUE(RIGHT(TeamList!$K$1,2))-1) -> 5 | J43: =INDEX(TeamList!A:BY,VLOOKUP(A43,TeamList!A:K,8,FALSE),11+I43) -> 1
A44: T_QA | B44: =B8 -> 2023 | C44: 7 | D44: 15.13665663 | F44: =VLOOKUP(A44,TeamList!A:I,8,FALSE) -> 2 | G44: =VLOOKUP(B44&"-"&TEXT(C44,"00"),CapacityModel!A:G,7,FALSE) -> 17.80783133 | H44: =VLOOKUP(A44,TeamList!A:K,10,FALSE) -> 0.85 | I44: =(B44*12+C44-1)-(VALUE(LEFT(TeamList!$K$1,4))*12+VALUE(RIGHT(TeamList!$K$1,2))-1) -> 6 | J44: =INDEX(TeamList!A:BY,VLOOKUP(A44,TeamList!A:K,8,FALSE),11+I44) -> 1
A45: T_QA | B45: =B9 -> 2023 | C45: 8 | D45: 15.29061245 | F45: =VLOOKUP(A45,TeamList!A:I,8,FALSE) -> 2 | G45: =VLOOKUP(B45&"-"&TEXT(C45,"00"),CapacityModel!A:G,7,FALSE) -> 17.98895582 | H45: =VLOOKUP(A45,TeamList!A:K,10,FALSE) -> 0.85 | I45: =(B45*12+C45-1)-(VALUE(LEFT(TeamList!$K$1,4))*12+VALUE(RIGHT(TeamList!$K$1,2))-1) -> 7 | J45: =INDEX(TeamList!A:BY,VLOOKUP(A45,TeamList!A:K,8,FALSE),11+I45) -> 1
A46: T_QA | B46: =B10 -> 2023 | C46: 9 | D46: 13.96099398 | F46: =VLOOKUP(A46,TeamList!A:I,8,FALSE) -> 2 | G46: =VLOOKUP(B46&"-"&TEXT(C46,"00"),CapacityModel!A:G,7,FALSE) -> 16.4246988 | H46: =VLOOKUP(A46,TeamList!A:K,10,FALSE) -> 0.85 | I46: =(B46*12+C46-1)-(VALUE(LEFT(TeamList!$K$1,4))*12+VALUE(RIGHT(TeamList!$K$1,2))-1) -> 8 | J46: =INDEX(TeamList!A:BY,VLOOKUP(A46,TeamList!A:K,8,FALSE),11+I46) -> 1
A47: T_QA | B47: =B11 -> 2023 | C47: 10 | D47: 14.9896988 | F47: =VLOOKUP(A47,TeamList!A:I,8,FALSE) -> 2 | G47: =VLOOKUP(B47&"-"&TEXT(C47,"00"),CapacityModel!A:G,7,FALSE) -> 17.63493976 | H47: =VLOOKUP(A47,TeamList!A:K,10,FALSE) -> 0.85 | I47: =(B47*12+C47-1)-(VALUE(LEFT(TeamList!$K$1,4))*12+VALUE(RIGHT(TeamList!$K$1,2))-1) -> 9 | J47: =INDEX(TeamList!A:BY,VLOOKUP(A47,TeamList!A:K,8,FALSE),11+I47) -> 1
A48: T_QA | B48: =B12 -> 2023 | C48: 11 | D48: 15.28361446 | F48: =VLOOKUP(A48,TeamList!A:I,8,FALSE) -> 2 | G48: =VLOOKUP(B48&"-"&TEXT(C48,"00"),CapacityModel!A:G,7,FALSE) -> 17.98072289 | H48: =VLOOKUP(A48,TeamList!A:K,10,FALSE) -> 0.85 | I48: =(B48*12+C48-1)-(VALUE(LEFT(TeamList!$K$1,4))*12+VALUE(RIGHT(TeamList!$K$1,2))-1) -> 10 | J48: =INDEX(TeamList!A:BY,VLOOKUP(A48,TeamList!A:K,8,FALSE),11+I48) -> 1
A49: T_QA | B49: =B13 -> 2023 | C49: 12 | D49: 11.83360442 | F49: =VLOOKUP(A49,TeamList!A:I,8,FALSE) -> 2 | G49: =VLOOKUP(B49&"-"&TEXT(C49,"00"),CapacityModel!A:G,7,FALSE) -> 13.92188755 | H49: =VLOOKUP(A49,TeamList!A:K,10,FALSE) -> 0.85 | I49: =(B49*12+C49-1)-(VALUE(LEFT(TeamList!$K$1,4))*12+VALUE(RIGHT(TeamList!$K$1,2))-1) -> 11 | J49: =INDEX(TeamList!A:BY,VLOOKUP(A49,TeamList!A:K,8,FALSE),11+I49) -> 1
A50: T_QA | B50: =B14 -> 2024 | C50: 1 | D50: 15.57836653 | F50: =VLOOKUP(A50,TeamList!A:I,8,FALSE) -> 2 | G50: =VLOOKUP(B50&"-"&TEXT(C50,"00"),CapacityModel!A:G,7,FALSE) -> 18.32749004 | H50: =VLOOKUP(A50,TeamList!A:K,10,FALSE) -> 0.85 | I50: =(B50*12+C50-1)-(VALUE(LEFT(TeamList!$K$1,4))*12+VALUE(RIGHT(TeamList!$K$1,2))-1) -> 12 | J50: =INDEX(TeamList!A:BY,VLOOKUP(A50,TeamList!A:K,8,FALSE),11+I50) -> 1
A51: T_QA | B51: =B15 -> 2024 | C51: 2 | D51: 15.30761952 | F51: =VLOOKUP(A51,TeamList!A:I,8,FALSE) -> 2 | G51: =VLOOKUP(B51&"-"&TEXT(C51,"00"),CapacityModel!A:G,7,FALSE) -> 18.00896414 | H51: =VLOOKUP(A51,TeamList!A:K,10,FALSE) -> 0.85 | I51: =(B51*12+C51-1)-(VALUE(LEFT(TeamList!$K$1,4))*12+VALUE(RIGHT(TeamList!$K$1,2))-1) -> 13 | J51: =INDEX(TeamList!A:BY,VLOOKUP(A51,TeamList!A:K,8,FALSE),11+I51) -> 1
A52: T_QA | B52: =B16 -> 2024 | C52: 3 | D52: 13.74561753 | F52: =VLOOKUP(A52,TeamList!A:I,8,FALSE) -> 2 | G52: =VLOOKUP(B52&"-"&TEXT(C52,"00"),CapacityModel!A:G,7,FALSE) -> 16.17131474 | H52: =VLOOKUP(A52,TeamList!A:K,10,FALSE) -> 0.85 | I52: =(B52*12+C52-1)-(VALUE(LEFT(TeamList!$K$1,4))*12+VALUE(RIGHT(TeamList!$K$1,2))-1) -> 14 | J52: =INDEX(TeamList!A:BY,VLOOKUP(A52,TeamList!A:K,8,FALSE),11+I52) -> 1
A53: T_QA | B53: =B17 -> 2024 | C53: 4 | D53: 15.16183267 | F53: =VLOOKUP(A53,TeamList!A:I,8,FALSE) -> 2 | G53: =VLOOKUP(B53&"-"&TEXT(C53,"00"),CapacityModel!A:G,7,FALSE) -> 17.8374502 | H53: =VLOOKUP(A53,TeamList!A:K,10,FALSE) -> 0.85 | I53: =(B53*12+C53-1)-(VALUE(LEFT(TeamList!$K$1,4))*12+VALUE(RIGHT(TeamList!$K$1,2))-1) -> 15 | J53: =INDEX(TeamList!A:BY,VLOOKUP(A53,TeamList!A:K,8,FALSE),11+I53) -> 1
A54: T_QA | B54: =B18 -> 2024 | C54: 5 | D54: 13.58594622 | F54: =VLOOKUP(A54,TeamList!A:I,8,FALSE) -> 2 | G54: =VLOOKUP(B54&"-"&TEXT(C54,"00"),CapacityModel!A:G,7,FALSE) -> 15.98346614 | H54: =VLOOKUP(A54,TeamList!A:K,10,FALSE) -> 0.85 | I54: =(B54*12+C54-1)-(VALUE(LEFT(TeamList!$K$1,4))*12+VALUE(RIGHT(TeamList!$K$1,2))-1) -> 16 | J54: =INDEX(TeamList!A:BY,VLOOKUP(A54,TeamList!A:K,8,FALSE),11+I54) -> 1
A55: T_QA | B55: =B19 -> 2024 | C55: 6 | D55: 13.74561753 | F55: =VLOOKUP(A55,TeamList!A:I,8,FALSE) -> 2 | G55: =VLOOKUP(B55&"-"&TEXT(C55,"00"),CapacityModel!A:G,7,FALSE) -> 16.17131474 | H55: =VLOOKUP(A55,TeamList!A:K,10,FALSE) -> 0.85 | I55: =(B55*12+C55-1)-(VALUE(LEFT(TeamList!$K$1,4))*12+VALUE(RIGHT(TeamList!$K$1,2))-1) -> 17 | J55: =INDEX(TeamList!A:BY,VLOOKUP(A55,TeamList!A:K,8,FALSE),11+I55) -> 1
A56: * VirtualDrum | B56: =B2 -> 2023 | C56: =C2 -> 1 | D56: 1
A57: * VirtualDrum | B57: =B3 -> 2023 | C57: 2 | D57: 2
A58: * VirtualDrum | B58: =B4 -> 2023 | C58: 3 | D58: 2
A59: * VirtualDrum | B59: =B5 -> 2023 | C59: 4 | D59: 2
A60: * VirtualDrum | B60: =B6 -> 2023 | C60: 5 | D60: 2
A61: * VirtualDrum | B61: =B7 -> 2023 | C61: 6 | D61: 2
A62: * VirtualDrum | B62: =B8 -> 2023 | C62: 7 | D62: 2
A63: * VirtualDrum | B63: =B9 -> 2023 | C63: 8 | D63: 1
A64: * VirtualDrum | B64: =B10 -> 2023 | C64: 9 | D64: 1
A65: * VirtualDrum | B65: =B11 -> 2023 | C65: 10 | D65: 2
A66: * VirtualDrum | B66: =B12 -> 2023 | C66: 11 | D66: 2
A67: * VirtualDrum | B67: =B13 -> 2023 | C67: 12 | D67: 1
A68: * VirtualDrum | B68: =B14 -> 2024 | C68: 1 | D68: 1
A69: * VirtualDrum | B69: =B15 -> 2024 | C69: 2 | D69: 2
A70: * VirtualDrum | B70: =B16 -> 2024 | C70: 3 | D70: 2
A71: * VirtualDrum | B71: =B17 -> 2024 | C71: 4 | D71: 2
A72: * VirtualDrum | B72: =B18 -> 2024 | C72: 5 | D72: 2
A73: * VirtualDrum | B73: =B19 -> 2024 | C73: 6 | D73: 2

Sheet PRJ_Test #1
A1: Project-ID | B1: PRJ_Test #1
A2: Project | B2: =VLOOKUP(B1,ProjectList!A:E,2,FALSE) -> Testprojekt #1
A3: Start-Year | B3: =VLOOKUP(B1,ProjectList!A:E,3,FALSE) -> 2023
A4: Start-Month | B4: =VLOOKUP(B1,ProjectList!A:E,4,FALSE) -> 1
A5: Active | B5: =VLOOKUP(B1,ProjectList!A:E,5,FALSE) -> 2
A7: Load per Month
A8: Offset to Start | C8: 0 | D8: 1 | E8: 2 | F8: 3 | G8: 4 | H8: 5 | I8: 6 | J8: 7 | K8: 8 | L8: 9 | M8: 10 | N8: 11 | O8: 12 | P8: 13
A9: Team-ID | B9: Team | C9: =TEXT($B$3+INT(($B$4-1+C8)/12),"00")&"-"&TEXT(MOD(($B$4-1+C8),12)+1,"00") -> 2023-01 | D9: 2023-02 | E9: 2023-03 | F9: 2023-04 | G9: 2023-05 | H9: 2023-06 | I9: 2023-07 | J9: 2023-08 | K9: 2023-09 | L9: 2023-10 | M9: 2023-11 | N9: 2023-12 | O9: 2024-01 | P9: 2024-02
A10: T_PM | B10: =VLOOKUP(A10,TeamList!A:B,2,FALSE) -> Product Management | C10: 12 | D10: 2
A11: T_DEV | B11: =VLOOKUP(A11,TeamList!A:B,2,FALSE) -> Development | C11: 10 | D11: 25 | E11: 20 | F11: 10 | G11: 2
A12: T_QA | B12: =VLOOKUP(A12,TeamList!A:B,2,FALSE) -> Quality Assurance | D12: 8 | E12: 10 | F12: 9 | G12: 2
A13: * VirtualDrum | B13: =VLOOKUP(A13,TeamList!A:B,2,FALSE) -> Virtual Team for Concept & Integration | D13: 1
B14: =VLOOKUP(A14,TeamList!A:B,2,FALSE) -> 
B15: =VLOOKUP(A15,TeamList!A:B,2,FALSE) -> 
B16: =VLOOKUP(A16,TeamList!A:B,2,FALSE) -> 
B17: =VLOOKUP(A17,TeamList!A:B,2,FALSE) -> 
B18: =VLOOKUP(A18,TeamList!A:B,2,FALSE) -> 
B19: =VLOOKUP(A19,TeamList!A:B,2,FALSE) -> 
B20: =VLOOKUP(A20,TeamList!A:B,2,FALSE) -> 
B21: =VLOOKUP(A21,TeamList!A:B,2,FALSE) -> 
B22: =VLOOKUP(A22,TeamList!A:B,2,FALSE) -> 
B23: =VLOOKUP(A23,TeamList!A:B,2,FALSE) -> 
B24: =VLOOKUP(A24,TeamList!A:B,2,FALSE) -> 
B25: =VLOOKUP(A25,TeamList!A:B,2,FALSE) -> 
B26: =VLOOKUP(A26,TeamList!A:B,2,FALSE) -> 
B27: =VLOOKUP(A27,TeamList!A:B,2,FALSE) -> 
B28: =VLOOKUP(A28,TeamList!A:B,2,FALSE) -> 

Sheet PRJ_Test #2
A1: Project-ID | B1: PRJ_Test #2
A2: Project | B2: =VLOOKUP(B1,ProjectList!A:E,2,FALSE) -> Testprojekt #2
A3: Start-Year | B3: =VLOOKUP(B1,ProjectList!A:E,3,FALSE) -> 2023
A4: Start-Month | B4: =VLOOKUP(B1,ProjectList!A:E,4,FALSE) -> 2
A5: Active | B5: =VLOOKUP(B1,ProjectList!A:E,5,FALSE) -> 2
A7: Load per Month
A8: Offset to Start | C8: 0 | D8: 1 | E8: 2 | F8: 3 | G8: 4 | H8: 5 | I8: 6 | J8: 7 | K8: 8 | L8: 9 | M8: 10 | N8: 11 | O8: 12 | P8: 13
A9: Team-ID | B9: Team | C9: =TEXT($B$3+INT(($B$4-1+C8)/12),"00")&"-"&TEXT(MOD(($B$4-1+C8),12)+1,"00") -> 2023-02 | D9: 2023-03 | E9: 2023-04 | F9: 2023-05 | G9: 2023-06 | H9: 2023-07 | I9: 2023-08 | J9: 2023-09 | K9: 2023-10 | L9: 2023-11 | M9: 2023-12 | N9: 2024-01 | O9: 2024-02 | P9: 2024-03
A10: T_PM | B10: =VLOOKUP(A10,TeamList!A:B,2,FALSE) -> Product Management | C10: 15 | D10: 10 | E10: 5 | G10: 2 | H10: 2
A11: T_DEV | B11: =VLOOKUP(A11,TeamList!A:B,2,FALSE) -> Development | C11: 10 | D11: 10 | E11: 25 | F11: 30 | G11: 30 | H11: 20 | I11: 5
A12: T_QA | B12: =VLOOKUP(A12,TeamList!A:B,2,FALSE) -> Quality Assurance | D12: 5 | E12: 5 | F12: 10 | G12: 10 | H12: 20 | I12: 5
A13: * VirtualDrum | B13: =VLOOKUP(A13,TeamList!A:B,2,FALSE) -> Virtual Team for Concept & Integration | E13: 2 | F13: 1
B14: =VLOOKUP(A14,TeamList!A:B,2,FALSE) -> 
B15: =VLOOKUP(A15,TeamList!A:B,2,FALSE) -> 
B16: =VLOOKUP(A16,TeamList!A:B,2,FALSE) -> 
B17: =VLOOKUP(A17,TeamList!A:B,2,FALSE) -> 
B18: =VLOOKUP(A18,TeamList!A:B,2,FALSE) -> 
B19: =VLOOKUP(A19,TeamList!A:B,2,FALSE) -> 
B20: =VLOOKUP(A20,TeamList!A:B,2,FALSE) -> 
B21: =VLOOKUP(A21,TeamList!A:B,2,FALSE) -> 
B22: =VLOOKUP(A22,TeamList!A:B,2,FALSE) -> 
B23: =VLOOKUP(A23,TeamList!A:B,2,FALSE) -> 
B24: =VLOOKUP(A24,TeamList!A:B,2,FALSE) -> 
B25: =VLOOKUP(A25,TeamList!A:B,2,FALSE) -> 
B26: =VLOOKUP(A26,TeamList!A:B,2,FALSE) -> 
B27: =VLOOKUP(A27,TeamList!A:B,2,FALSE) -> 
B28: =VLOOKUP(A28,TeamList!A:B,2,FALSE) -> 

Sheet PRJ_Test #3
A1: Project-ID | B1: PRJ_Test #3
A2: Project | B2: =VLOOKUP(B1,ProjectList!A:E,2,FALSE) -> Testprojekt #3
A3: Start-Year | B3: =VLOOKUP(B1,ProjectList!A:E,3,FALSE) -> 2023
A4: Start-Month | B4: =VLOOKUP(B1,ProjectList!A:E,4,FALSE) -> 8
A5: Active | B5: =VLOOKUP(B1,ProjectList!A:E,5,FALSE) -> 2
A7: Load per Month
A8: Offset to Start | C8: 0 | D8: 1 | E8: 2 | F8: 3 | G8: 4 | H8: 5 | I8: 6 | J8: 7 | K8: 8 | L8: 9 | M8: 10 | N8: 11 | O8: 12 | P8: 13
A9: Team-ID | B9: Team | C9: =TEXT($B$3+INT(($B$4-1+C8)/12),"00")&"-"&TEXT(MOD(($B$4-1+C8),12)+1,"00") -> 2023-08 | D9: 2023-09 | E9: 2023-10 | F9: 2023-11 | G9: 2023-12 | H9: 2024-01 | I9: 2024-02 | J9: 2024-03 | K9: 2024-04 | L9: 2024-05 | M9: 2024-06 | N9: 2024-07 | O9: 2024-08 | P9: 2024-09
A10: T_PM | B10: =VLOOKUP(A10,TeamList!A:B,2,FALSE) -> Product Management | C10: 5 | D10: 2 | E10: 2
A11: T_DEV | B11: =VLOOKUP(A11,TeamList!A:B,2,FALSE) -> Development | C11: 10 | D11: 10 | E11: 10
A12: T_QA | B12: =VLOOKUP(A12,TeamList!A:B,2,FALSE) -> Quality Assurance | C12: 5 | D12: 10 | E12: 5
A13: * VirtualDrum | B13: =VLOOKUP(A13,TeamList!A:B,2,FALSE) -> Virtual Team for Concept & Integration | D13: 1
B14: =VLOOKUP(A14,TeamList!A:B,2,FALSE) -> 
B15: =VLOOKUP(A15,TeamList!A:B,2,FALSE) -> 
B16: =VLOOKUP(A16,TeamList!A:B,2,FALSE) -> 
B17: =VLOOKUP(A17,TeamList!A:B,2,FALSE) -> 
B18: =VLOOKUP(A18,TeamList!A:B,2,FALSE) -> 
B19: =VLOOKUP(A19,TeamList!A:B,2,FALSE) -> 
B20: =VLOOKUP(A20,TeamList!A:B,2,FALSE) -> 
B21: =VLOOKUP(A21,TeamList!A:B,2,FALSE) -> 
B22: =VLOOKUP(A22,TeamList!A:B,2,FALSE) -> 
B23: =VLOOKUP(A23,TeamList!A:B,2,FALSE) -> 
B24: =VLOOKUP(A24,TeamList!A:B,2,FALSE) -> 
B25: =VLOOKUP(A25,TeamList!A:B,2,FALSE) -> 
B26: =VLOOKUP(A26,TeamList!A:B,2,FALSE) -> 
B27: =VLOOKUP(A27,TeamList!A:B,2,FALSE) -> 
B28: =VLOOKUP(A28,TeamList!A:B,2,FALSE) -> 

Sheet PRJ_Test #4
A1: Project-ID | B1: PRJ_Test #4
A2: Project | B2: =VLOOKUP(B1,ProjectList!A:E,2,FALSE) -> Testprojekt #4
A3: Start-Year | B3: =VLOOKUP(B1,ProjectList!A:E,3,FALSE) -> 2023
A4: Start-Month | B4: =VLOOKUP(B1,ProjectList!A:E,4,FALSE) -> 9
A5: Active | B5: =VLOOKUP(B1,ProjectList!A:E,5,FALSE) -> 1
A7: Load per Month
A8: Offset to Start | C8: 0 | D8: 1 | E8: 2 | F8: 3 | G8: 4 | H8: 5 | I8: 6 | J8: 7 | K8: 8 | L8: 9 | M8: 10 | N8: 11 | O8: 12 | P8: 13
A9: Team-ID | B9: Team | C9: =TEXT($B$3+INT(($B$4-1+C8)/12),"00")&"-"&TEXT(MOD(($B$4-1+C8),12)+1,"00") -> 2023-09 | D9: 2023-10 | E9: 2023-11 | F9: 2023-12 | G9: 2024-01 | H9: 2024-02 | I9: 2024-03 | J9: 2024-04 | K9: 2024-05 | L9: 2024-06 | M9: 2024-07 | N9: 2024-08 | O9: 2024-09 | P9: 2024-10
A10: T_PM | B10: =VLOOKUP(A10,TeamList!A:B,2,FALSE) -> Product Management | C10: 12 | D10: 2
A11: T_DEV | B11: =VLOOKUP(A11,TeamList!A:B,2,FALSE) -> Development | C11: 10 | D11: 25 | E11: 20 | F11: 10 | G11: 2
A12: T_QA | B12: =VLOOKUP(A12,TeamList!A:B,2,FALSE) -> Quality Assurance | D12: 8 | E12: 10 | F12: 9 | G12: 2
A13: * VirtualDrum | B13: =VLOOKUP(A13,TeamList!A:B,2,FALSE) -> Virtual Team for Concept & Integration
B14: =VLOOKUP(A14,TeamList!A:B,2,FALSE) -> 
B15: =VLOOKUP(A15,TeamList!A:B,2,FALSE) -> 
B16: =VLOOKUP(A16,TeamList!A:B,2,FALSE) -> 
B17: =VLOOKUP(A17,TeamList!A:B,2,FALSE) -> 
B18: =VLOOKUP(A18,TeamList!A:B,2,FALSE) -> 
B19: =VLOOKUP(A19,TeamList!A:B,2,FALSE) -> 
B20: =VLOOKUP(A20,TeamList!A:B,2,FALSE) -> 
B21: =VLOOKUP(A21,TeamList!A:B,2,FALSE) -> 
B22: =VLOOKUP(A22,TeamList!A:B,2,FALSE) -> 
B23: =VLOOKUP(A23,TeamList!A:B,2,FALSE) -> 
B24: =VLOOKUP(A24,TeamList!A:B,2,FALSE) -> 
B25: =VLOOKUP(A25,TeamList!A:B,2,FALSE) -> 
B26: =VLOOKUP(A26,TeamList!A:B,2,FALSE) -> 
B27: =VLOOKUP(A27,TeamList!A:B,2,FALSE) -> 
B28: =VLOOKUP(A28,TeamList!A:B,2,FALSE) -> 

Sheet PRJ_Test #5
A1: Project-ID | B1: PRJ_Test #5
A2: Project | B2: =VLOOKUP(B1,ProjectList!A:E,2,FALSE) -> Testprojekt #5
A3: Start-Year | B3: =VLOOKUP(B1,ProjectList!A:E,3,FALSE) -> 2023
A4: Start-Month | B4: =VLOOKUP(B1,ProjectList!A:E,4,FALSE) -> 11
A5: Active | B5: =VLOOKUP(B1,ProjectList!A:E,5,FALSE) -> 1
A7: Load per Month
A8: Offset to Start | C8: 0 | D8: 1 | E8: 2 | F8: 3 | G8: 4 | H8: 5 | I8: 6 | J8: 7 | K8: 8 | L8: 9 | M8: 10 | N8: 11 | O8: 12 | P8: 13
A9: Team-ID | B9: Team | C9: =TEXT($B$3+INT(($B$4-1+C8)/12),"00")&"-"&TEXT(MOD(($B$4-1+C8),12)+1,"00") -> 2023-11 | D9: 2023-12 | E9: 2024-01 | F9: 2024-02 | G9: 2024-03 | H9: 2024-04 | I9: 2024-05 | J9: 2024-06 | K9: 2024-07 | L9: 2024-08 | M9: 2024-09 | N9: 2024-10 | O9: 2024-11 | P9: 2024-12
A10: T_PM | B10: =VLOOKUP(A10,TeamList!A:B,2,FALSE) -> Product Management | C10: 15 | D10: 10 | E10: 5 | G10: 2 | H10: 2
A11: T_DEV | B11: =VLOOKUP(A11,TeamList!A:B,2,FALSE) -> Development | C11: 10 | D11: 10 | E11: 25 | F11: 30 | G11: 30 | H11: 20 | I11: 5
A12: T_QA | B12: =VLOOKUP(A12,TeamList!A:B,2,FALSE) -> Quality Assurance | D12: 5 | E12: 5 | F12: 10 | G12: 10 | H12: 15 | I12: 5
A13: * VirtualDrum | B13: =VLOOKUP(A13,TeamList!A:B,2,FALSE) -> Virtual Team for Concept & Integration | E13: 2 | F13: 1
B14: =VLOOKUP(A14,TeamList!A:B,2,FALSE) -> 
B15: =VLOOKUP(A15,TeamList!A:B,2,FALSE) -> 
B16: =VLOOKUP(A16,TeamList!A:B,2,FALSE) -> 
B17: =VLOOKUP(A17,TeamList!A:B,2,FALSE) -> 
B18: =VLOOKUP(A18,TeamList!A:B,2,FALSE) -> 
B19: =VLOOKUP(A19,TeamList!A:B,2,FALSE) -> 
B20: =VLOOKUP(A20,TeamList!A:B,2,FALSE) -> 
B21: =VLOOKUP(A21,TeamList!A:B,2,FALSE) -> 
B22: =VLOOKUP(A22,TeamList!A:B,2,FALSE) -> 
B23: =VLOOKUP(A23,TeamList!A:B,2,FALSE) -> 
B24: =VLOOKUP(A24,TeamList!A:B,2,FALSE) -> 
B25: =VLOOKUP(A25,TeamList!A:B,2,FALSE) -> 
B26: =VLOOKUP(A26,TeamList!A:B,2,FALSE) -> 
B27: =VLOOKUP(A27,TeamList!A:B,2,FALSE) -> 
B28: =VLOOKUP(A28,TeamList!A:B,2,FALSE) -> 

Sheet PRJ_Test #6
A1: Project-ID | B1: PRJ_Test #6
A2: Project | B2: =VLOOKUP(B1,ProjectList!A:E,2,FALSE) -> Testprojekt #6
A3: Start-Year | B3: =VLOOKUP(B1,ProjectList!A:E,3,FALSE) -> 2023
A4: Start-Month | B4: =VLOOKUP(B1,ProjectList!A:E,4,FALSE) -> 16
A5: Active | B5: =VLOOKUP(B1,ProjectList!A:E,5,FALSE) -> 1
A7: Load per Month
A8: Offset to Start | C8: 0 | D8: 1 | E8: 2 | F8: 3 | G8: 4 | H8: 5 | I8: 6 | J8: 7 | K8: 8 | L8: 9 | M8: 10 | N8: 11 | O8: 12 | P8: 13
A9: Team-ID | B9: Team | C9: =TEXT($B$3+INT(($B$4-1+C8)/12),"00")&"-"&TEXT(MOD(($B$4-1+C8),12)+1,"00") -> 2024-04 | D9: 2024-05 | E9: 2024-06 | F9: 2024-07 | G9: 2024-08 | H9: 2024-09 | I9: 2024-10 | J9: 2024-11 | K9: 2024-12 | L9: 2025-01 | M9: 2025-02 | N9: 2025-03 | O9: 2025-04 | P9: 2025-05
A10: T_PM | B10: =VLOOKUP(A10,TeamList!A:B,2,FALSE) -> Product Management | C10: 5 | D10: 2 | E10: 2
A11: T_DEV | B11: =VLOOKUP(A11,TeamList!A:B,2,FALSE) -> Development | C11: 10 | D11: 10 | E11: 10
A12: T_QA | B12: =VLOOKUP(A12,TeamList!A:B,2,FALSE) -> Quality Assurance | C12: 5 | D12: 10 | E12: 5
A13: * VirtualDrum | B13: =VLOOKUP(A13,TeamList!A:B,2,FALSE) -> Virtual Team for Concept & Integration | D13: 1
B14: =VLOOKUP(A14,TeamList!A:B,2,FALSE) -> 
B15: =VLOOKUP(A15,TeamList!A:B,2,FALSE) -> 
B16: =VLOOKUP(A16,TeamList!A:B,2,FALSE) -> 
B17: =VLOOKUP(A17,TeamList!A:B,2,FALSE) -> 
B18: =VLOOKUP(A18,TeamList!A:B,2,FALSE) -> 
B19: =VLOOKUP(A19,TeamList!A:B,2,FALSE) -> 
B20: =VLOOKUP(A20,TeamList!A:B,2,FALSE) -> 
B21: =VLOOKUP(A21,TeamList!A:B,2,FALSE) -> 
B22: =VLOOKUP(A22,TeamList!A:B,2,FALSE) -> 
B23: =VLOOKUP(A23,TeamList!A:B,2,FALSE) -> 
B24: =VLOOKUP(A24,TeamList!A:B,2,FALSE) -> 
B25: =VLOOKUP(A25,TeamList!A:B,2,FALSE) -> 
B26: =VLOOKUP(A26,TeamList!A:B,2,FALSE) -> 
B27: =VLOOKUP(A27,TeamList!A:B,2,FALSE) -> 
B28: =VLOOKUP(A28,TeamList!A:B,2,FALSE) -> 

Sheet PRJ_Template
A1: Project-ID | B1: PRJ_Template
A2: Project | B2: =VLOOKUP(B1,ProjectList!A:E,2,FALSE) -> 
A3: Start-Year | B3: =VLOOKUP(B1,ProjectList!A:E,3,FALSE) -> 
A4: Start-Month | B4: =VLOOKUP(B1,ProjectList!A:E,4,FALSE) -> 
A5: Active | B5: =VLOOKUP(B1,ProjectList!A:E,5,FALSE) -> 
A7: Load per Month
A8: Offset to Start | C8: 0 | D8: 1 | E8: 2 | F8: 3 | G8: 4 | H8: 5 | I8: 6 | J8: 7 | K8: 8 | L8: 9 | M8: 10 | N8: 11 | O8: 12 | P8: 13
A9: Team-ID | B9: Team | C9: =TEXT($B$3+INT(($B$4-1+C8)/12),"00")&"-"&TEXT(MOD(($B$4-1+C8),12)+1,"00") -> 
A10: T_PM | B10: =VLOOKUP(A10,TeamList!A:B,2,FALSE) -> Product Management
A11: T_DEV | B11: =VLOOKUP(A11,TeamList!A:B,2,FALSE) -> Development
A12: T_QA | B12: =VLOOKUP(A12,TeamList!A:B,2,FALSE) -> Quality Assurance
A13: * VirtualDrum | B13: =VLOOKUP(A13,TeamList!A:B,2,FALSE) -> Virtual Team for Concept & Integration
B14: =VLOOKUP(A14,TeamList!A:B,2,FALSE) -> 
B15: =VLOOKUP(A15,TeamList!A:B,2,FALSE) -> 
B16: =VLOOKUP(A16,TeamList!A:B,2,FALSE) -> 
B17: =VLOOKUP(A17,TeamList!A:B,2,FALSE) -> 
B18: =VLOOKUP(A18,TeamList!A:B,2,FALSE) -> 
B19: =VLOOKUP(A19,TeamList!A:B,2,FALSE) -> 
B20: =VLOOKUP(A20,TeamList!A:B,2,FALSE) -> 
B21: =VLOOKUP(A21,TeamList!A:B,2,FALSE) -> 
B22: =VLOOKUP(A22,TeamList!A:B,2,FALSE) -> 
B23: =VLOOKUP(A23,TeamList!A:B,2,FALSE) -> 
B24: =VLOOKUP(A24,TeamList!A:B,2,FALSE) -> 
B25: =VLOOKUP(A25,TeamList!A:B,2,FALSE) -> 
B26: =VLOOKUP(A26,TeamList!A:B,2,FALSE) -> 
B27: =VLOOKUP(A27,TeamList!A:B,2,FALSE) -> 
B28: =VLOOKUP(A28,TeamList!A:B,2,FALSE) -> 

Sheet Raw
A1: Project-Id | B1: Team-id | C1: year | D1: month | E1: effort
A2: PRJ_Test #1 | B2: T_PM | C2: 2023 | D2: 1 | E2: 12
A3: PRJ_Test #1 | B3: T_PM | C3: 2023 | D3: 2 | E3: 2
A4: PRJ_Test #1 | B4: T_DEV | C4: 2023 | D4: 1 | E4: 10
A5: PRJ_Test #1 | B5: T_DEV | C5: 2023 | D5: 2 | E5: 25
A6: PRJ_Test #1 | B6: T_DEV | C6: 2023 | D6: 3 | E6: 20
A7: PRJ_Test #1 | B7: T_DEV | C7: 2023 | D7: 4 | E7: 10
A8: PRJ_Test #1 | B8: T_DEV | C8: 2023 | D8: 5 | E8: 2
A9: PRJ_Test #1 | B9: T_QA | C9: 2023 | D9: 2 | E9: 8
A10: PRJ_Test #1 | B10: T_QA | C10: 2023 | D10: 3 | E10: 10
A11: PRJ_Test #1 | B11: T_QA | C11: 2023 | D11: 4 | E11: 9
A12: PRJ_Test #1 | B12: T_QA | C12: 2023 | D12: 5 | E12: 2
A13: PRJ_Test #1 | B13: * VirtualDrum | C13: 2023 | D13: 2 | E13: 1
A14: PRJ_Test #2 | B14: T_PM | C14: 2023 | D14: 2 | E14: 15
A15: PRJ_Test #2 | B15: T_PM | C15: 2023 | D15: 3 | E15: 10
A16: PRJ_Test #2 | B16: T_PM | C16: 2023 | D16: 4 | E16: 5
A17: PRJ_Test #2 | B17: T_PM | C17: 2023 | D17: 6 | E17: 2
A18: PRJ_Test #2 | B18: T_PM | C18: 2023 | D18: 7 | E18: 2
A19: PRJ_Test #2 | B19: T_DEV | C19: 2023 | D19: 2 | E19: 10
A20: PRJ_Test #2 | B20: T_DEV | C20: 2023 | D20: 3 | E20: 10
A21: PRJ_Test #2 | B21: T_DEV | C21: 2023 | D21: 4 | E21: 25
A22: PRJ_Test #2 | B22: T_DEV | C22: 2023 | D22: 5 | E22: 30
A23: PRJ_Test #2 | B23: T_DEV | C23: 2023 | D23: 6 | E23: 30
A24: PRJ_Test #2 | B24: T_DEV | C24: 2023 | D24: 7 | E24: 20
A25: PRJ_Test #2 | B25: T_DEV | C25: 2023 | D25: 8 | E25: 5
A26: PRJ_Test #2 | B26: T_QA | C26: 2023 | D26: 3 | E26: 5
A27: PRJ_Test #2 | B27: T_QA | C27: 2023 | D27: 4 | E27: 5
A28: PRJ_Test #2 | B28: T_QA | C28: 2023 | D28: 5 | E28: 10
A29: PRJ_Test #2 | B29: T_QA | C29: 2023 | D29: 6 | E29: 10
A30: PRJ_Test #2 | B30: T_QA | C30: 2023 | D30: 7 | E30: 20
A31: PRJ_Test #2 | B31: T_QA | C31: 2023 | D31: 8 | E31: 5
A32: PRJ_Test #2 | B32: * VirtualDrum | C32: 2023 | D32: 4 | E32: 2
A33: PRJ_Test #2 | B33: * VirtualDrum | C33: 2023 | D33: 5 | E33: 1
A34: PRJ_Test #3 | B34: T_PM | C34: 2023 | D34: 8 | E34: 5
A35: PRJ_Test #3 | B35: T_PM | C35: 2023 | D35: 9 | E35: 2
A36: PRJ_Test #3 | B36: T_PM | C36: 2023 | D36: 10 | E36: 2
A37: PRJ_Test #3 | B37: T_DEV | C37: 2023 | D37: 8 | E37: 10
A38: PRJ_Test #3 | B38: T_DEV | C38: 2023 | D38: 9 | E38: 10
A39: PRJ_Test #3 | B39: T_DEV | C39: 2023 | D39: 10 | E39: 10
A40: PRJ_Test #3 | B40: T_QA | C40: 2023 | D40: 8 | E40: 5
A41: PRJ_Test #3 | B41: T_QA | C41: 2023 | D41: 9 | E41: 10
A42: PRJ_Test #3 | B42: T_QA | C42: 2023 | D42: 10 | E42: 5
A43: PRJ_Test #3 | B43: * VirtualDrum | C43: 2023 | D43: 9 | E43: 1
A44: PRJ_Test #4 | B44: T_PM | C44: 2023 | D44: 9 | E44: 12
A45: PRJ_Test #4 | B45: T_PM | C45: 2023 | D45: 10 | E45: 2
A46: PRJ_Test #4 | B46: T_DEV | C46: 2023 | D46: 9 | E46: 10
A47: PRJ_Test #4 | B47: T_DEV | C47: 2023 | D47: 10 | E47: 25
A48: PRJ_Test #4 | B48: T_DEV | C48: 2023 | D48: 11 | E48: 20
A49: PRJ_Test #4 | B49: T_DEV | C49: 2023 | D49: 12 | E49: 10
A50: PRJ_Test #4 | B50: T_DEV | C50: 2024 | D50: 1 | E50: 2
A51: PRJ_Test #4 | B51: T_QA | C51: 2023 | D51: 10 | E51: 8
A52: PRJ_Test #4 | B52: T_QA | C52: 2023 | D52: 11 | E52: 10
A53: PRJ_Test #4 | B53: T_QA | C53: 2023 | D53: 12 | E53: 9
A54: PRJ_Test #4 | B54: T_QA | C54: 2024 | D54: 1 | E54: 2
A55: PRJ_Test #5 | B55: T_PM | C55: 2023 | D55: 11 | E55: 15
A56: PRJ_Test #5 | B56: T_PM | C56: 2023 | D56: 12 | E56: 10
A57: PRJ_Test #5 | B57: T_PM | C57: 2024 | D57: 1 | E57: 5
A58: PRJ_Test #5 | B58: T_PM | C58: 2024 | D58: 3 | E58: 2
A59: PRJ_Test #5 | B59: T_PM | C59: 2024 | D59: 4 | E59: 2
A60: PRJ_Test #5 | B60: T_DEV | C60: 2023 | D60: 11 | E60: 10
A61: PRJ_Test #5 | B61: T_DEV | C61: 2023 | D61: 12 | E61: 10
A62: PRJ_Test #5 | B62: T_DEV | C62: 2024 | D62: 1 | E62: 25
A63: PRJ_Test #5 | B63: T_DEV | C63: 2024 | D63: 2 | E63: 30
A64: PRJ_Test #5 | B64: T_DEV | C64: 2024 | D64: 3 | E64: 30
A65: PRJ_Test #5 | B65: T_DEV | C65: 2024 | D65: 4 | E65: 20
A66: PRJ_Test #5 | B66: T_DEV | C66: 2024 | D66: 5 | E66: 5
A67: PRJ_Test #5 | B67: T_QA | C67: 2023 | D67: 12 | E67: 5
A68: PRJ_Test #5 | B68: T_QA | C68: 2024 | D68: 1 | E68: 5
A69: PRJ_Test #5 | B69: T_QA | C69: 2024 | D69: 2 | E69: 10
A70: PRJ_Test #5 | B70: T_QA | C70: 2024 | D70: 3 | E70: 10
A71: PRJ_Test #5 | B71: T_QA | C71: 2024 | D71: 4 | E71: 15
A72: PRJ_Test #5 | B72: T_QA | C72: 2024 | D72: 5 | E72: 5
A73: PRJ_Test #5 | B73: * VirtualDrum | C73: 2024 | D73: 1 | E73: 2
A74: PRJ_Test #5 | B74: * VirtualDrum | C74: 2024 | D74: 2 | E74: 1
A75: PRJ_Test #6 | B75: T_PM | C75: 2024 | D75: 4 | E75: 5
A76: PRJ_Test #6 | B76: T_PM | C76: 2024 | D76: 5 | E76: 2
A77: PRJ_Test #6 | B77: T_PM | C77: 2024 | D77: 6 | E77: 2
A78: PRJ_Test #6 | B78: T_DEV | C78: 2024 | D78: 4 | E78: 10
A79: PRJ_Test #6 | B79: T_DEV | C79: 2024 | D79: 5 | E79: 10
A80: PRJ_Test #6 | B80: T_DEV | C80: 2024 | D80: 6 | E80: 10
A81: PRJ_Test #6 | B81: T_QA | C81: 2024 | D81: 4 | E81: 5
A82: PRJ_Test #6 | B82: T_QA | C82: 2024 | D82: 5 | E82: 10
A83: PRJ_Test #6 | B83: T_QA | C83: 2024 | D83: 6 | E83: 5
A84: PRJ_Test #6 | B84: * VirtualDrum | C84: 2024 | D84: 5 | E84: 1

Sheet Import
A1: Message | B1: Project-Id (without leading PRJ_) | C1: Team-id (s. TeamList) | D1: Month (relative to start 0 = first month) | E1: Effort (in PersonDays) | G1: Effort on timeline …
A2: imported | B2: Test #1 | C2: T_PM | D2: 0 | E2: 12 | G2: Typ1 | H2: 0 | I2: 1 | J2: 2 | K2: 3 | L2: 4 | M2: 5 | N2: 6
A3: imported | B3: Test #1 | C3: T_PM | D3: 1 | E3: 2 | G3: T_ProductManagement_001 | H3: 12 | I3: 2
A4: imported | B4: Test #1 | C4: T_DEV | D4: 0 | E4: 10 | G4: T_Development_001 | H4: 10 | I4: 25 | J4: 20 | K4: 10 | L4: 3
A5: imported | B5: Test #1 | C5: T_DEV | D5: 1 | E5: 25 | G5: T_Quality_001 | I5: 8 | J5: 12 | K5: 8 | L5: 5
A6: imported | B6: Test #1 | C6: T_DEV | D6: 2 | E6: 20 | G6: * VirtualDrum | I6: 1
A7: imported | B7: Test #1 | C7: T_DEV | D7: 3 | E7: 10
A8: imported | B8: Test #1 | C8: T_DEV | D8: 4 | E8: 2 | G8: Typ2 | H8: 0 | I8: 1 | J8: 2 | K8: 3 | L8: 4 | M8: 5 | N8: 6
A9: imported | B9: Test #1 | C9: T_QA | D9: 1 | E9: 8 | G9: T_ProductManagement_001 | H9: 15 | I9: 10 | J9: 5 | L9: 2 | M9: 2
A10: imported | B10: Test #1 | C10: T_QA | D10: 2 | E10: 10 | G10: T_Development_001 | H10: 10 | I10: 10 | J10: 25 | K10: 30 | L10: 30 | M10: 20 | N10: 5
A11: imported | B11: Test #1 | C11: T_QA | D11: 3 | E11: 9 | G11: T_Quality_001 | I11: 5 | J11: 5 | K11: 10 | L11: 10 | M11: 20 | N11: 5
A12: imported | B12: Test #1 | C12: T_QA | D12: 4 | E12: 2 | G12: * VirtualDrum | J12: 2 | K12: 1
A13: imported | B13: Test #1 | C13: * VirtualDrum | D13: 1 | E13: 1
A14: imported | B14: Test #2 | C14: T_PM | D14: 0 | E14: 15 | G14: Typ3 | H14: 0 | I14: 1 | J14: 2 | K14: 3 | L14: 4 | M14: 5 | N14: 6
A15: imported | B15: Test #2 | C15: T_PM | D15: 1 | E15: 10 | G15: T_ProductManagement_001 | H15: 5 | I15: 2 | J15: 2
A16: imported | B16: Test #2 | C16: T_PM | D16: 2 | E16: 5 | G16: T_Development_001 | H16: 10 | I16: 10 | J16: 10
A17: imported | B17: Test #2 | C17: T_PM | D17: 4 | E17: 2 | G17: T_Quality_001 | H17: 5 | I17: 10 | J17: 5
A18: imported | B18: Test #2 | C18: T_PM | D18: 5 | E18: 2 | G18: * VirtualDrum | I18: 1
A19: imported | B19: Test #2 | C19: T_DEV | D19: 0 | E19: 10
A20: imported | B20: Test #2 | C20: T_DEV | D20: 1 | E20: 10
A21: imported | B21: Test #2 | C21: T_DEV | D21: 2 | E21: 25
A22: imported | B22: Test #2 | C22: T_DEV | D22: 3 | E22: 30
A23: imported | B23: Test #2 | C23: T_DEV | D23: 4 | E23: 30
A24: imported | B24: Test #2 | C24: T_DEV | D24: 5 | E24: 20
A25: imported | B25: Test #2 | C25: T_DEV | D25: 6 | E25: 5
A26: imported | B26: Test #2 | C26: T_QA | D26: 1 | E26: 5
A27: imported | B27: Test #2 | C27: T_QA | D27: 2 | E27: 5
A28: imported | B28: Test #2 | C28: T_QA | D28: 3 | E28: 10
A29: imported | B29: Test #2 | C29: T_QA | D29: 4 | E29: 10
A30: imported | B30: Test #2 | C30: T_QA | D30: 5 | E30: 20
A31: imported | B31: Test #2 | C31: T_QA | D31: 6 | E31: 5
A32: imported | B32: Test #2 | C32: * VirtualDrum | D32: 2 | E32: 2
A33: imported | B33: Test #2 | C33: * VirtualDrum | D33: 3 | E33: 1
A34: imported | B34: Test #3 | C34: T_PM | D34: 0 | E34: 5
A35: imported | B35: Test #3 | C35: T_PM | D35: 1 | E35: 2
A36: imported | B36: Test #3 | C36: T_PM | D36: 2 | E36: 2
A37: imported | B37: Test #3 | C37: T_DEV | D37: 0 | E37: 10
A38: imported | B38: Test #3 | C38: T_DEV | D38: 1 | E38: 10
A39: imported | B39: Test #3 | C39: T_DEV | D39: 2 | E39: 10
A40: imported | B40: Test #3 | C40: T_QA | D40: 0 | E40: 5
A41: imported | B41: Test #3 | C41: T_QA | D41: 1 | E41: 10
A42: imported | B42: Test #3 | C42: T_QA | D42: 2 | E42: 5
A43: imported | B43: Test #3 | C43: * VirtualDrum | D43: 1 | E43: 1
A44: imported | B44: Test #4 | C44: T_PM | D44: 0 | E44: 12
A45: imported | B45: Test #4 | C45: T_PM | D45: 1 | E45: 2
A46: imported | B46: Test #4 | C46: T_DEV | D46: 0 | E46: 10
A47: imported | B47: Test #4 | C47: T_DEV | D47: 1 | E47: 25
A48: imported | B48: Test #4 | C48: T_DEV | D48: 2 | E48: 20
A49: imported | B49: Test #4 | C49: T_DEV | D49: 3 | E49: 10
A50: imported | B50: Test #4 | C50: T_DEV | D50: 4 | E50: 2
A51: imported | B51: Test #4 | C51: T_QA | D51: 1 | E51: 8
A52: imported | B52: Test #4 | C52: T_QA | D52: 2 | E52: 10
A53: imported | B53: Test #4 | C53: T_QA | D53: 3 | E53: 9
A54: imported | B54: Test #4 | C54: T_QA | D54: 4 | E54: 2
A55: imported | B55: Test #4 | C55: * VirtualDrum | D55: 1 | E55: 1
A56: imported | B56: Test #5 | C56: T_PM | D56: 0 | E56: 15
A57: imported | B57: Test #5 | C57: T_PM | D57: 1 | E57: 10
A58: imported | B58: Test #5 | C58: T_PM | D58: 2 | E58: 5
A59: imported | B59: Test #5 | C59: T_PM | D59: 4 | E59: 2
A60: imported | B60: Test #5 | C60: T_PM | D60: 5 | E60: 2
A61: imported | B61: Test #5 | C61: T_DEV | D61: 0 | E61: 10
A62: imported | B62: Test #5 | C62: T_DEV | D62: 1 | E62: 10
A63: imported | B63: Test #5 | C63: T_DEV | D63: 2 | E63: 25
A64: imported | B64: Test #5 | C64: T_DEV | D64: 3 | E64: 30
A65: imported | B65: Test #5 | C65: T_DEV | D65: 4 | E65: 30
A66: imported | B66: Test #5 | C66: T_DEV | D66: 5 | E66: 20
A67: imported | B67: Test #5 | C67: T_DEV | D67: 6 | E67: 5
A68: imported | B68: Test #5 | C68: T_QA | D68: 1 | E68: 5
A69: imported | B69: Test #5 | C69: T_QA | D69: 2 | E69: 5
A70: imported | B70: Test #5 | C70: T_QA | D70: 3 | E70: 10
A71: imported | B71: Test #5 | C71: T_QA | D71: 4 | E71: 10
A72: imported | B72: Test #5 | C72: T_QA | D72: 5 | E72: 20
A73: imported | B73: Test #5 | C73: T_QA | D73: 6 | E73: 5
A74: imported | B74: Test #5 | C74: * VirtualDrum | D74: 2 | E74: 2
A75: imported | B75: Test #5 | C75: * VirtualDrum | D75: 3 | E75: 1
A76: imported | B76: Test #6 | C76: T_PM | D76: 0 | E76: 5
A77: imported | B77: Test #6 | C77: T_PM | D77: 1 | E77: 2
A78: imported | B78: Test #6 | C78: T_PM | D78: 2 | E78: 2
A79: imported | B79: Test #6 | C79: T_DEV | D79: 0 | E79: 10
A80: imported | B80: Test #6 | C80: T_DEV | D80: 1 | E80: 10
A81: imported | B81: Test #6 | C81: T_DEV | D81: 2 | E81: 10
A82: imported | B82: Test #6 | C82: T_QA | D82: 0 | E82: 5
A83: imported | B83: Test #6 | C83: T_QA | D83: 1 | E83: 10
A84: imported | B84: Test #6 | C84: T_QA | D84: 2 | E84: 5
A85: imported | B85: Test #6 | C85: * VirtualDrum | D85: 1 | E85: 1
A86: project [PRJ_Test #NotInList] not in ProjectList - not imported! | B86: Test #NotInList | C86: T_PM | D86: 0 | E86: 99
A87: Team [XX] is missing in Project-Sheet [PJR_Test #1] | B87: Test #1 | C87: XX | D87: 0 | E87: 99

Sheet AnonymousLookup
A1: Class | B1: AnonymousID | C1: OriginalID
A2: Project | B2: PRJ_001 | C2: PRJ_Test #1
A3: Project | B3: PRJ_002 | C3: PRJ_Test #2
A4: Project | B4: PRJ_003 | C4: PRJ_Test #3
A5: Project | B5: PRJ_004 | C5: PRJ_Test #4
A6: Project | B6: PRJ_005 | C6: PRJ_Test #5
A7: Project | B7: PRJ_006 | C7: PRJ_Test #6
A8: Team | B8: T_Quality_001 | C8: T_QA
A9: Team | B9: T_Development_001 | C9: T_DEV
A10: Team | B10: T_ProductManagement_001 | C10: T_PM
A11: Team | B11: T_VirtualDrum_001 | C11: * VirtualDrum

Sheet CapacityModel
A1: Generic capacity model for next years (Germany)
A3: working days per year after bank holidays, illness and vacation | F3: 205
A4: *type of capacity model you want to use | F4: detailed | G4: simple = PPY/12, detailed s. this sheet
A6: ="calculation of brutto working days per month in "&K6 -> calculation of brutto working days per month in 2023 | I6: bank holidays for year | K6: 2023 | M6: ="overview about envelope curves for year "&K6 -> overview about envelope curves for year 2023
A7: key | B7: month | C7: working days | D7: resulting envelope | E7: working days envelope | F7: illness/vacation correction factor | G7: mean brutto working days* | I7: =DATE(K6,1,1) -> 2023-01-01 | J7: Neujahr
A8: =K6&"-"&TEXT(B8,"00") -> 2023-01 | B8: 1 | C8: =NETWORKDAYS(DATE(K6,B8,1),DATE(K6,B9,1)-1,I7:I20) -> 21 | D8: =E8*F8 -> 1.032289157 | E8: =C8/(SUM(C8:C19)/12) -> 1.012048193 | F8: 1.02 | G8: =PPDYear/12*IF(CapaModel="simple",1,D8) -> 17.63493976 | I8: =DATE(K6,1,6) -> 2023-01-06 | J8: Dreikönigstag
A9: =K6&"-"&TEXT(B9,"00") -> 2023-02 | B9: 2 | C9: =NETWORKDAYS(DATE(K6,B9,1),DATE(K6,B10,1)-1,I7:I20) -> 20 | D9: 1.012048193 | E9: =C9/(SUM(C8:C19)/12) -> 0.9638554217 | F9: 1.05 | G9: 17.28915663 | I9: =I10-2 -> 2023-04-07 | J9: Karfreitag
A10: =K6&"-"&TEXT(B10,"00") -> 2023-03 | B10: 3 | C10: =NETWORKDAYS(DATE(K6,B10,1),DATE(K6,B11,1)-1,I7:I20) -> 23 | D10: 1.097349398 | E10: =C10/(SUM(C8:C19)/12) -> 1.108433735 | F10: 0.99 | G10: 18.74638554 | I10: =DOLLAR((DAY(MINUTE(K6/38)/2+55)&".4."&K6)/7,)*7-IF(YEAR(1)=1904,5,6) -> 2023-04-09 | J10: Ostersonntag
A11: =K6&"-"&TEXT(B11,"00") -> 2023-04 | B11: 4 | C11: =NETWORKDAYS(DATE(K6,B11,1),DATE(K6,B12,1)-1,I7:I20) -> 18 | D11: 0.9021686747 | E11: =C11/(SUM(C8:C19)/12) -> 0.8674698795 | F11: 1.04 | G11: 15.41204819 | I11: =I10+1 -> 2023-04-10 | J11: Ostermontag
A12: =K6&"-"&TEXT(B12,"00") -> 2023-05 | B12: 5 | C12: =NETWORKDAYS(DATE(K6,B12,1),DATE(K6,B13,1)-1,I7:I20) -> 20 | D12: 0.9927710843 | E12: =C12/(SUM(C8:C19)/12) -> 0.9638554217 | F12: 1.03 | G12: 16.95983936 | I12: =DATE(K6,5,1) -> 2023-05-01 | J12: Tag der Arbeit
A13: =K6&"-"&TEXT(B13,"00") -> 2023-06 | B13: 6 | C13: =NETWORKDAYS(DATE(K6,B13,1),DATE(K6,B14,1)-1,I7:I20) -> 21 | D13: 1.001927711 | E13: =C13/(SUM(C8:C19)/12) -> 1.012048193 | F13: 0.99 | G13: 17.11626506 | I13: =I10+39 -> 2023-05-18 | J13: Christi Himmelfahrt
A14: =K6&"-"&TEXT(B14,"00") -> 2023-07 | B14: 7 | C14: =NETWORKDAYS(DATE(K6,B14,1),DATE(K6,B15,1)-1,I7:I20) -> 21 | D14: 1.042409639 | E14: =C14/(SUM(C8:C19)/12) -> 1.012048193 | F14: 1.03 | G14: 17.80783133 | I14: =I10+49 -> 2023-05-28 | J14: Pfingstsonntag
A15: =K6&"-"&TEXT(B15,"00") -> 2023-08 | B15: 8 | C15: =NETWORKDAYS(DATE(K6,B15,1),DATE(K6,B16,1)-1,I7:I20) -> 23 | D15: 1.053012048 | E15: =C15/(SUM(C8:C19)/12) -> 1.108433735 | F15: 0.95 | G15: 17.98895582 | I15: =I10+50 -> 2023-05-29 | J15: Pfingstmontag
A16: =K6&"-"&TEXT(B16,"00") -> 2023-09 | B16: 9 | C16: =NETWORKDAYS(DATE(K6,B16,1),DATE(K6,B17,1)-1,I7:I20) -> 21 | D16: 0.9614457831 | E16: =C16/(SUM(C8:C19)/12) -> 1.012048193 | F16: 0.95 | G16: 16.4246988 | I16: =I10+60 -> 2023-06-08 | J16: Fronleichnam
A17: =K6&"-"&TEXT(B17,"00") -> 2023-10 | B17: 10 | C17: =NETWORKDAYS(DATE(K6,B17,1),DATE(K6,B18,1)-1,I7:I20) -> 21 | D17: 1.032289157 | E17: =C17/(SUM(C8:C19)/12) -> 1.012048193 | F17: 1.02 | G17: 17.63493976 | I17: =DATE(K6,10,3) -> 2023-10-03 | J17: Tag der deutschen Einheit
A18: =K6&"-"&TEXT(B18,"00") -> 2023-11 | B18: 11 | C18: =NETWORKDAYS(DATE(K6,B18,1),DATE(K6,B19,1)-1,I7:I20) -> 21 | D18: 1.05253012 | E18: =C18/(SUM(C8:C19)/12) -> 1.012048193 | F18: 1.04 | G18: 17.98072289 | I18: =DATE(K6,11,1) -> 2023-11-01 | J18: Allerheiligen
A19: =K6&"-"&TEXT(B19,"00") -> 2023-12 | B19: 12 | C19: =NETWORKDAYS(DATE(K6,B19,1),DATE(K6+1,1,1)-1,I7:I20) -> 19 | D19: 0.814939759 | E19: =C19/(SUM(C8:C19)/12) -> 0.9156626506 | F19: 0.89 | G19: 13.92188755 | I19: =DATE(K6,12,25) -> 2023-12-25 | J19: 1. Weihnachtsfeiertag
I20: =DATE(K6,12,26) -> 2023-12-26 | J20: 2. Weihnachtsfeiertag
A22: ="calculation of brutto working days per month in "&K22 -> calculation of brutto working days per month in 2024 | I22: bank holidays for year | K22: =K6+1 -> 2024
A23: key | B23: month | C23: working days | D23: resulting envelope | E23: working days envelope | F23: illness/vacation envelope | G23: mean brutto working days | I23: =DATE(K22,1,1) -> 2024-01-01 | J23: Neujahr
A24: =K22&"-"&TEXT(B24,"00") -> 2024-01 | B24: 1 | C24: =NETWORKDAYS(DATE(K22,B24,1),DATE(K22,B25,1)-1,I23:I36) -> 22 | D24: =E24*F24 -> 1.072828685 | E24: =C24/(SUM(C24:C35)/12) -> 1.051792829 | F24: =F8 -> 1.02 | G24: =PPDYear/12*IF(CapaModel="simple",1,D24) -> 18.32749004 | I24: =DATE(K22,1,6) -> 2024-01-06 | J24: Dreikönigstag
A25: =K22&"-"&TEXT(B25,"00") -> 2024-02 | B25: 2 | C25: =NETWORKDAYS(DATE(K22,B25,1),DATE(K22,B26,1)-1,I23:I36) -> 21 | D25: 1.054183267 | E25: =C25/(SUM(C24:C35)/12) -> 1.003984064 | F25: =F9 -> 1.05 | G25: 18.00896414 | I25: =I26-2 -> 2024-03-29 | J25: Karfreitag
A26: =K22&"-"&TEXT(B26,"00") -> 2024-03 | B26: 3 | C26: =NETWORKDAYS(DATE(K22,B26,1),DATE(K22,B27,1)-1,I23:I36) -> 20 | D26: 0.9466135458 | E26: =C26/(SUM(C24:C35)/12) -> 0.9561752988 | F26: 0.99 | G26: 16.17131474 | I26: =DOLLAR((DAY(MINUTE(K22/38)/2+55)&".4."&K22)/7,)*7-IF(YEAR(1)=1904,5,6) -> 2024-03-31 | J26: Ostersonntag
A27: =K22&"-"&TEXT(B27,"00") -> 2024-04 | B27: 4 | C27: =NETWORKDAYS(DATE(K22,B27,1),DATE(K22,B28,1)-1,I23:I36) -> 21 | D27: 1.044143426 | E27: =C27/(SUM(C24:C35)/12) -> 1.003984064 | F27: 1.04 | G27: 17.8374502 | I27: =I26+1 -> 2024-04-01 | J27: Ostermontag
A28: =K22&"-"&TEXT(B28,"00") -> 2024-05 | B28: 5 | C28: =NETWORKDAYS(DATE(K22,B28,1),DATE(K22,B29,1)-1,I23:I36) -> 19 | D28: 0.9356175299 | E28: =C28/(SUM(C24:C35)/12) -> 0.9083665339 | F28: 1.03 | G28: 15.98346614 | I28: =DATE(K22,5,1) -> 2024-05-01 | J28: Tag der Arbeit
A29: =K22&"-"&TEXT(B29,"00") -> 2024-06 | B29: 6 | C29: =NETWORKDAYS(DATE(K22,B29,1),DATE(K22,B30,1)-1,I23:I36) -> 20 | D29: 0.9466135458 | E29: =C29/(SUM(C24:C35)/12) -> 0.9561752988 | F29: 0.99 | G29: 16.17131474 | I29: =I26+39 -> 2024-05-09 | J29: Christi Himmelfahrt
A30: =K22&"-"&TEXT(B30,"00") -> 2024-07 | B30: 7 | C30: =NETWORKDAYS(DATE(K22,B30,1),DATE(K22,B31,1)-1,I23:I36) -> 23 | D30: 1.132589641 | E30: =C30/(SUM(C24:C35)/12) -> 1.099601594 | F30: 1.03 | G30: 19.34840637 | I30: =I26+49 -> 2024-05-19 | J30: Pfingstsonntag
A31: =K22&"-"&TEXT(B31,"00") -> 2024-08 | B31: 8 | C31: =NETWORKDAYS(DATE(K22,B31,1),DATE(K22,B32,1)-1,I23:I36) -> 22 | D31: 0.9992031873 | E31: =C31/(SUM(C24:C35)/12) -> 1.051792829 | F31: 0.95 | G31: 17.06972112 | I31: =I26+50 -> 2024-05-20 | J31: Pfingstmontag
A32: =K22&"-"&TEXT(B32,"00") -> 2024-09 | B32: 9 | C32: =NETWORKDAYS(DATE(K22,B32,1),DATE(K22,B33,1)-1,I23:I36) -> 21 | D32: 0.9537848606 | E32: =C32/(SUM(C24:C35)/12) -> 1.003984064 | F32: 0.95 | G32: 16.2938247 | I32: =I26+60 -> 2024-05-30 | J32: Fronleichnam
A33: =K22&"-"&TEXT(B33,"00") -> 2024-10 | B33: 10 | C33: =NETWORKDAYS(DATE(K22,B33,1),DATE(K22,B34,1)-1,I23:I36) -> 22 | D33: 1.072828685 | E33: =C33/(SUM(C24:C35)/12) -> 1.051792829 | F33: 1.02 | G33: 18.32749004 | I33: =DATE(K22,10,3) -> 2024-10-03 | J33: Tag der deutschen Einheit
A34: =K22&"-"&TEXT(B34,"00") -> 2024-11 | B34: 11 | C34: =NETWORKDAYS(DATE(K22,B34,1),DATE(K22,B35,1)-1,I23:I36) -> 20 | D34: 0.9944223108 | E34: =C34/(SUM(C24:C35)/12) -> 0.9561752988 | F34: 1.04 | G34: 16.98804781 | I34: =DATE(K22,11,1) -> 2024-11-01 | J34: Allerheiligen
A35: =K22&"-"&TEXT(B35,"00") -> 2024-12 | B35: 12 | C35: =NETWORKDAYS(DATE(K22,B35,1),DATE(K22+1,1,1)-1,I23:I36) -> 20 | D35: 0.8509960159 | E35: =C35/(SUM(C24:C35)/12) -> 0.9561752988 | F35: 0.89 | G35: 14.53784861 | I35: =DATE(K22,12,25) -> 2024-12-25 | J35: 1. Weihnachtsfeiertag
I36: =DATE(K22,12,26) -> 2024-12-26 | J36: 2. Weihnachtsfeiertag
A38: ="calculation of brutto working days per month in "&K38 -> calculation of brutto working days per month in 2025 | I38: bank holidays for year | K38: =K22+1 -> 2025
A39: key | B39: month | C39: working days | D39: resulting envelope | E39: working days envelope | F39: illness/vacation envelope | G39: mean brutto working days | I39: =DATE(K38,1,1) -> 2025-01-01 | J39: Neujahr
A40: =K38&"-"&TEXT(B40,"00") -> 2025-01 | B40: 1 | C40: =NETWORKDAYS(DATE(K38,B40,1),DATE(K38,B41,1)-1,I39:I52) -> 21 | D40: =E40*F40 -> 1.02816 | E40: =C40/(SUM(C40:C51)/12) -> 1.008 | F40: =F24 -> 1.02 | G40: =PPDYear/12*IF(CapaModel="simple",1,D40) -> 17.5644 | I40: =DATE(K38,1,6) -> 2025-01-06 | J40: Dreikönigstag
A41: =K38&"-"&TEXT(B41,"00") -> 2025-02 | B41: 2 | C41: =NETWORKDAYS(DATE(K38,B41,1),DATE(K38,B42,1)-1,I39:I52) -> 20 | D41: 1.008 | E41: =C41/(SUM(C40:C51)/12) -> 0.96 | F41: =F25 -> 1.05 | G41: 17.22 | I41: =I42-2 -> 2025-04-18 | J41: Karfreitag
A42: =K38&"-"&TEXT(B42,"00") -> 2025-03 | B42: 3 | C42: =NETWORKDAYS(DATE(K38,B42,1),DATE(K38,B43,1)-1,I39:I52) -> 21 | D42: 0.99792 | E42: =C42/(SUM(C40:C51)/12) -> 1.008 | F42: 0.99 | G42: 17.0478 | I42: =DOLLAR((DAY(MINUTE(K38/38)/2+55)&".4."&K38)/7,)*7-IF(YEAR(1)=1904,5,6) -> 2025-04-20 | J42: Ostersonntag
A43: =K38&"-"&TEXT(B43,"00") -> 2025-04 | B43: 4 | C43: =NETWORKDAYS(DATE(K38,B43,1),DATE(K38,B44,1)-1,I39:I52) -> 20 | D43: 0.9984 | E43: =C43/(SUM(C40:C51)/12) -> 0.96 | F43: 1.04 | G43: 17.056 | I43: =I42+1 -> 2025-04-21 | J43: Ostermontag
A44: =K38&"-"&TEXT(B44,"00") -> 2025-05 | B44: 5 | C44: =NETWORKDAYS(DATE(K38,B44,1),DATE(K38,B45,1)-1,I39:I52) -> 20 | D44: 0.9888 | E44: =C44/(SUM(C40:C51)/12) -> 0.96 | F44: 1.03 | G44: 16.892 | I44: =DATE(K38,5,1) -> 2025-05-01 | J44: Tag der Arbeit
A45: =K38&"-"&TEXT(B45,"00") -> 2025-06 | B45: 6 | C45: =NETWORKDAYS(DATE(K38,B45,1),DATE(K38,B46,1)-1,I39:I52) -> 19 | D45: 0.90288 | E45: =C45/(SUM(C40:C51)/12) -> 0.912 | F45: 0.99 | G45: 15.4242 | I45: =I42+39 -> 2025-05-29 | J45: Christi Himmelfahrt
A46: =K38&"-"&TEXT(B46,"00") -> 2025-07 | B46: 7 | C46: =NETWORKDAYS(DATE(K38,B46,1),DATE(K38,B47,1)-1,I39:I52) -> 23 | D46: 1.13712 | E46: =C46/(SUM(C40:C51)/12) -> 1.104 | F46: 1.03 | G46: 19.4258 | I46: =I42+49 -> 2025-06-08 | J46: Pfingstsonntag
A47: =K38&"-"&TEXT(B47,"00") -> 2025-08 | B47: 8 | C47: =NETWORKDAYS(DATE(K38,B47,1),DATE(K38,B48,1)-1,I39:I52) -> 21 | D47: 0.9576 | E47: =C47/(SUM(C40:C51)/12) -> 1.008 | F47: 0.95 | G47: 16.359 | I47: =I42+50 -> 2025-06-09 | J47: Pfingstmontag
A48: =K38&"-"&TEXT(B48,"00") -> 2025-09 | B48: 9 | C48: =NETWORKDAYS(DATE(K38,B48,1),DATE(K38,B49,1)-1,I39:I52) -> 22 | D48: 1.0032 | E48: =C48/(SUM(C40:C51)/12) -> 1.056 | F48: 0.95 | G48: 17.138 | I48: =I42+60 -> 2025-06-19 | J48: Fronleichnam
A49: =K38&"-"&TEXT(B49,"00") -> 2025-10 | B49: 10 | C49: =NETWORKDAYS(DATE(K38,B49,1),DATE(K38,B50,1)-1,I39:I52) -> 22 | D49: 1.07712 | E49: =C49/(SUM(C40:C51)/12) -> 1.056 | F49: 1.02 | G49: 18.4008 | I49: =DATE(K38,10,3) -> 2025-10-03 | J49: Tag der deutschen Einheit
A50: =K38&"-"&TEXT(B50,"00") -> 2025-11 | B50: 11 | C50: =NETWORKDAYS(DATE(K38,B50,1),DATE(K38,B51,1)-1,I39:I52) -> 20 | D50: 0.9984 | E50: =C50/(SUM(C40:C51)/12) -> 0.96 | F50: 1.04 | G50: 17.056 | I50: =DATE(K38,11,1) -> 2025-11-01 | J50: Allerheiligen
A51: =K38&"-"&TEXT(B51,"00") -> 2025-12 | B51: 12 | C51: =NETWORKDAYS(DATE(K38,B51,1),DATE(K38+1,1,1)-1,I39:I52) -> 21 | D51: 0.89712 | E51: =C51/(SUM(C40:C51)/12) -> 1.008 | F51: 0.89 | G51: 15.3258 | I51: =DATE(K38,12,25) -> 2025-12-25 | J51: 1. Weihnachtsfeiertag
I52: =DATE(K38,12,26) -> 2025-12-26 | J52: 2. Weihnachtsfeiertag
A54: ="calculation of brutto working days per month in "&K54 -> calculation of brutto working days per month in 2026 | I54: bank holidays for year | K54: =K38+1 -> 2026
A55: key | B55: month | C55: working days | D55: resulting envelope | E55: working days envelope | F55: illness/vacation envelope | G55: mean brutto working days | I55: =DATE(K54,1,1) -> 2026-01-01 | J55: Neujahr
A56: =K54&"-"&TEXT(B56,"00") -> 2026-01 | B56: 1 | C56: =NETWORKDAYS(DATE(K54,B56,1),DATE(K54,B57,1)-1,I55:I68) -> 20 | D56: =E56*F56 -> 0.9714285714 | E56: =C56/(SUM(C56:C67)/12) -> 0.9523809524 | F56: =F40 -> 1.02 | G56: =PPDYear/12*IF(CapaModel="simple",1,D56) -> 16.5952381 | I56: =DATE(K54,1,6) -> 2026-01-06 | J56: Dreikönigstag
A57: =K54&"-"&TEXT(B57,"00") -> 2026-02 | B57: 2 | C57: =NETWORKDAYS(DATE(K54,B57,1),DATE(K54,B58,1)-1,I55:I68) -> 20 | D57: 1 | E57: =C57/(SUM(C56:C67)/12) -> 0.9523809524 | F57: =F41 -> 1.05 | G57: 17.08333333 | I57: =I58-2 -> 2026-04-03 | J57: Karfreitag
A58: =K54&"-"&TEXT(B58,"00") -> 2026-03 | B58: 3 | C58: =NETWORKDAYS(DATE(K54,B58,1),DATE(K54,B59,1)-1,I55:I68) -> 22 | D58: 1.037142857 | E58: =C58/(SUM(C56:C67)/12) -> 1.047619048 | F58: 0.99 | G58: 17.71785714 | I58: =DOLLAR((DAY(MINUTE(K54/38)/2+55)&".4."&K54)/7,)*7-IF(YEAR(1)=1904,5,6) -> 2026-04-05 | J58: Ostersonntag
A59: =K54&"-"&TEXT(B59,"00") -> 2026-04 | B59: 4 | C59: =NETWORKDAYS(DATE(K54,B59,1),DATE(K54,B60,1)-1,I55:I68) -> 20 | D59: 0.9904761905 | E59: =C59/(SUM(C56:C67)/12) -> 0.9523809524 | F59: 1.04 | G59: 16.92063492 | I59: =I58+1 -> 2026-04-06 | J59: Ostermontag
A60: =K54&"-"&TEXT(B60,"00") -> 2026-05 | B60: 5 | C60: =NETWORKDAYS(DATE(K54,B60,1),DATE(K54,B61,1)-1,I55:I68) -> 18 | D60: 0.8828571429 | E60: =C60/(SUM(C56:C67)/12) -> 0.8571428571 | F60: 1.03 | G60: 15.08214286 | I60: =DATE(K54,5,1) -> 2026-05-01 | J60: Tag der Arbeit
A61: =K54&"-"&TEXT(B61,"00") -> 2026-06 | B61: 6 | C61: =NETWORKDAYS(DATE(K54,B61,1),DATE(K54,B62,1)-1,I55:I68) -> 21 | D61: 0.99 | E61: =C61/(SUM(C56:C67)/12) -> 1 | F61: 0.99 | G61: 16.9125 | I61: =I58+39 -> 2026-05-14 | J61: Christi Himmelfahrt
A62: =K54&"-"&TEXT(B62,"00") -> 2026-07 | B62: 7 | C62: =NETWORKDAYS(DATE(K54,B62,1),DATE(K54,B63,1)-1,I55:I68) -> 23 | D62: 1.128095238 | E62: =C62/(SUM(C56:C67)/12) -> 1.095238095 | F62: 1.03 | G62: 19.27162698 | I62: =I58+49 -> 2026-05-24 | J62: Pfingstsonntag
A63: =K54&"-"&TEXT(B63,"00") -> 2026-08 | B63: 8 | C63: =NETWORKDAYS(DATE(K54,B63,1),DATE(K54,B64,1)-1,I55:I68) -> 21 | D63: 0.95 | E63: =C63/(SUM(C56:C67)/12) -> 1 | F63: 0.95 | G63: 16.22916667 | I63: =I58+50 -> 2026-05-25 | J63: Pfingstmontag
A64: =K54&"-"&TEXT(B64,"00") -> 2026-09 | B64: 9 | C64: =NETWORKDAYS(DATE(K54,B64,1),DATE(K54,B65,1)-1,I55:I68) -> 22 | D64: 0.9952380952 | E64: =C64/(SUM(C56:C67)/12) -> 1.047619048 | F64: 0.95 | G64: 17.00198413 | I64: =I58+60 -> 2026-06-04 | J64: Fronleichnam
A65: =K54&"-"&TEXT(B65,"00") -> 2026-10 | B65: 10 | C65: =NETWORKDAYS(DATE(K54,B65,1),DATE(K54,B66,1)-1,I55:I68) -> 22 | D65: 1.068571429 | E65: =C65/(SUM(C56:C67)/12) -> 1.047619048 | F65: 1.02 | G65: 18.2547619 | I65: =DATE(K54,10,3) -> 2026-10-03 | J65: Tag der deutschen Einheit
A66: =K54&"-"&TEXT(B66,"00") -> 2026-11 | B66: 11 | C66: =NETWORKDAYS(DATE(K54,B66,1),DATE(K54,B67,1)-1,I55:I68) -> 21 | D66: 1.04 | E66: =C66/(SUM(C56:C67)/12) -> 1 | F66: 1.04 | G66: 17.76666667 | I66: =DATE(K54,11,1) -> 2026-11-01 | J66: Allerheiligen
A67: =K54&"-"&TEXT(B67,"00") -> 2026-12 | B67: 12 | C67: =NETWORKDAYS(DATE(K54,B67,1),DATE(K54+1,1,1)-1,I55:I68) -> 22 | D67: 0.9323809524 | E67: =C67/(SUM(C56:C67)/12) -> 1.047619048 | F67: 0.89 | G67: 15.9281746 | I67: =DATE(K54,12,25) -> 2026-12-25 | J67: 1. Weihnachtsfeiertag
I68: =DATE(K54,12,26) -> 2026-12-26 | J68: 2. Weihnachtsfeiertag
A70: ="calculation of brutto working days per month in "&K70 -> calculation of brutto working days per month in 2027 | I70: bank holidays for year | K70: =K54+1 -> 2027
A71: key | B71: month | C71: working days | D71: resulting envelope | E71: working days envelope | F71: illness/vacation envelope | G71: mean brutto working days | I71: =DATE(K70,1,1) -> 2027-01-01 | J71: Neujahr
A72: =K70&"-"&TEXT(B72,"00") -> 2027-01 | B72: 1 | C72: =NETWORKDAYS(DATE(K70,B72,1),DATE(K70,B73,1)-1,I71:I84) -> 19 | D72: =E72*F72 -> 0.9192094862 | E72: =C72/(SUM(C72:C83)/12) -> 0.9011857708 | F72: =F56 -> 1.02 | G72: =PPDYear/12*IF(CapaModel="simple",1,D72) -> 15.70316206 | I72: =DATE(K70,1,6) -> 2027-01-06 | J72: Dreikönigstag
A73: =K70&"-"&TEXT(B73,"00") -> 2027-02 | B73: 2 | C73: =NETWORKDAYS(DATE(K70,B73,1),DATE(K70,B74,1)-1,I71:I84) -> 20 | D73: 0.9960474308 | E73: =C73/(SUM(C72:C83)/12) -> 0.9486166008 | F73: =F57 -> 1.05 | G73: 17.01581028 | I73: =I74-2 -> 2027-03-26 | J73: Karfreitag
A74: =K70&"-"&TEXT(B74,"00") -> 2027-03 | B74: 3 | C74: =NETWORKDAYS(DATE(K70,B74,1),DATE(K70,B75,1)-1,I71:I84) -> 21 | D74: 0.9860869565 | E74: =C74/(SUM(C72:C83)/12) -> 0.9960474308 | F74: 0.99 | G74: 16.84565217 | I74: =DOLLAR((DAY(MINUTE(K70/38)/2+55)&".4."&K70)/7,)*7-IF(YEAR(1)=1904,5,6) -> 2027-03-28 | J74: Ostersonntag
A75: =K70&"-"&TEXT(B75,"00") -> 2027-04 | B75: 4 | C75: =NETWORKDAYS(DATE(K70,B75,1),DATE(K70,B76,1)-1,I71:I84) -> 22 | D75: 1.085217391 | E75: =C75/(SUM(C72:C83)/12) -> 1.043478261 | F75: 1.04 | G75: 18.53913043 | I75: =I74+1 -> 2027-03-29 | J75: Ostermontag
A76: =K70&"-"&TEXT(B76,"00") -> 2027-05 | B76: 5 | C76: =NETWORKDAYS(DATE(K70,B76,1),DATE(K70,B77,1)-1,I71:I84) -> 18 | D76: 0.8793675889 | E76: =C76/(SUM(C72:C83)/12) -> 0.8537549407 | F76: 1.03 | G76: 15.02252964 | I76: =DATE(K70,5,1) -> 2027-05-01 | J76: Tag der Arbeit
A77: =K70&"-"&TEXT(B77,"00") -> 2027-06 | B77: 6 | C77: =NETWORKDAYS(DATE(K70,B77,1),DATE(K70,B78,1)-1,I71:I84) -> 22 | D77: 1.033043478 | E77: =C77/(SUM(C72:C83)/12) -> 1.043478261 | F77: 0.99 | G77: 17.64782609 | I77: =I74+39 -> 2027-05-06 | J77: Christi Himmelfahrt
A78: =K70&"-"&TEXT(B78,"00") -> 2027-07 | B78: 7 | C78: =NETWORKDAYS(DATE(K70,B78,1),DATE(K70,B79,1)-1,I71:I84) -> 22 | D78: 1.074782609 | E78: =C78/(SUM(C72:C83)/12) -> 1.043478261 | F78: 1.03 | G78: 18.36086957 | I78: =I74+49 -> 2027-05-16 | J78: Pfingstsonntag
A79: =K70&"-"&TEXT(B79,"00") -> 2027-08 | B79: 8 | C79: =NETWORKDAYS(DATE(K70,B79,1),DATE(K70,B80,1)-1,I71:I84) -> 22 | D79: 0.9913043478 | E79: =C79/(SUM(C72:C83)/12) -> 1.043478261 | F79: 0.95 | G79: 16.93478261 | I79: =I74+50 -> 2027-05-17 | J79: Pfingstmontag
A80: =K70&"-"&TEXT(B80,"00") -> 2027-09 | B80: 9 | C80: =NETWORKDAYS(DATE(K70,B80,1),DATE(K70,B81,1)-1,I71:I84) -> 22 | D80: 0.9913043478 | E80: =C80/(SUM(C72:C83)/12) -> 1.043478261 | F80: 0.95 | G80: 16.93478261 | I80: =I74+60 -> 2027-05-27 | J80: Fronleichnam
A81: =K70&"-"&TEXT(B81,"00") -> 2027-10 | B81: 10 | C81: =NETWORKDAYS(DATE(K70,B81,1),DATE(K70,B82,1)-1,I71:I84) -> 21 | D81: 1.015968379 | E81: =C81/(SUM(C72:C83)/12) -> 0.9960474308 | F81: 1.02 | G81: 17.35612648 | I81: =DATE(K70,10,3) -> 2027-10-03 | J81: Tag der deutschen Einheit
A82: =K70&"-"&TEXT(B82,"00") -> 2027-11 | B82: 11 | C82: =NETWORKDAYS(DATE(K70,B82,1),DATE(K70,B83,1)-1,I71:I84) -> 21 | D82: 1.035889328 | E82: =C82/(SUM(C72:C83)/12) -> 0.9960474308 | F82: 1.04 | G82: 17.69644269 | I82: =DATE(K70,11,1) -> 2027-11-01 | J82: Allerheiligen
A83: =K70&"-"&TEXT(B83,"00") -> 2027-12 | B83: 12 | C83: =NETWORKDAYS(DATE(K70,B83,1),DATE(K70+1,1,1)-1,I71:I84) -> 23 | D83: 0.9709090909 | E83: =C83/(SUM(C72:C83)/12) -> 1.090909091 | F83: 0.89 | G83: 16.58636364 | I83: =DATE(K70,12,25) -> 2027-12-25 | J83: 1. Weihnachtsfeiertag
I84: =DATE(K70,12,26) -> 2027-12-26 | J84: 2. Weihnachtsfeiertag
A86: ="calculation of brutto working days per month in "&K86 -> calculation of brutto working days per month in 2028 | I86: bank holidays for year | K86: =K70+1 -> 2028
A87: key | B87: month | C87: working days | D87: resulting envelope | E87: working days envelope | F87: illness/vacation envelope | G87: mean brutto working days | I87: =DATE(K86,1,1) -> 2028-01-01 | J87: Neujahr
A88: =K86&"-"&TEXT(B88,"00") -> 2028-01 | B88: 1 | C88: =NETWORKDAYS(DATE(K86,B88,1),DATE(K86,B89,1)-1,I87:I100) -> 20 | D88: =E88*F88 -> 0.9831325301 | E88: =C88/(SUM(C88:C99)/12) -> 0.9638554217 | F88: =F72 -> 1.02 | G88: =PPDYear/12*IF(CapaModel="simple",1,D88) -> 16.79518072 | I88: =DATE(K86,1,6) -> 2028-01-06 | J88: Dreikönigstag
A89: =K86&"-"&TEXT(B89,"00") -> 2028-02 | B89: 2 | C89: =NETWORKDAYS(DATE(K86,B89,1),DATE(K86,B90,1)-1,I87:I100) -> 21 | D89: 1.062650602 | E89: =C89/(SUM(C88:C99)/12) -> 1.012048193 | F89: =F73 -> 1.05 | G89: 18.15361446 | I89: =I90-2 -> 2028-04-14 | J89: Karfreitag
A90: =K86&"-"&TEXT(B90,"00") -> 2028-03 | B90: 3 | C90: =NETWORKDAYS(DATE(K86,B90,1),DATE(K86,B91,1)-1,I87:I100) -> 23 | D90: 1.097349398 | E90: =C90/(SUM(C88:C99)/12) -> 1.108433735 | F90: 0.99 | G90: 18.74638554 | I90: =DOLLAR((DAY(MINUTE(K86/38)/2+55)&".4."&K86)/7,)*7-IF(YEAR(1)=1904,5,6) -> 2028-04-16 | J90: Ostersonntag
A91: =K86&"-"&TEXT(B91,"00") -> 2028-04 | B91: 4 | C91: =NETWORKDAYS(DATE(K86,B91,1),DATE(K86,B92,1)-1,I87:I100) -> 18 | D91: 0.9021686747 | E91: =C91/(SUM(C88:C99)/12) -> 0.8674698795 | F91: 1.04 | G91: 15.41204819 | I91: =I90+1 -> 2028-04-17 | J91: Ostermontag
A92: =K86&"-"&TEXT(B92,"00") -> 2028-05 | B92: 5 | C92: =NETWORKDAYS(DATE(K86,B92,1),DATE(K86,B93,1)-1,I87:I100) -> 21 | D92: 1.042409639 | E92: =C92/(SUM(C88:C99)/12) -> 1.012048193 | F92: 1.03 | G92: 17.80783133 | I92: =DATE(K86,5,1) -> 2028-05-01 | J92: Tag der Arbeit
A93: =K86&"-"&TEXT(B93,"00") -> 2028-06 | B93: 6 | C93: =NETWORKDAYS(DATE(K86,B93,1),DATE(K86,B94,1)-1,I87:I100) -> 20 | D93: 0.9542168675 | E93: =C93/(SUM(C88:C99)/12) -> 0.9638554217 | F93: 0.99 | G93: 16.30120482 | I93: =I90+39 -> 2028-05-25 | J93: Christi Himmelfahrt
A94: =K86&"-"&TEXT(B94,"00") -> 2028-07 | B94: 7 | C94: =NETWORKDAYS(DATE(K86,B94,1),DATE(K86,B95,1)-1,I87:I100) -> 21 | D94: 1.042409639 | E94: =C94/(SUM(C88:C99)/12) -> 1.012048193 | F94: 1.03 | G94: 17.80783133 | I94: =I90+49 -> 2028-06-04 | J94: Pfingstsonntag
A95: =K86&"-"&TEXT(B95,"00") -> 2028-08 | B95: 8 | C95: =NETWORKDAYS(DATE(K86,B95,1),DATE(K86,B96,1)-1,I87:I100) -> 23 | D95: 1.053012048 | E95: =C95/(SUM(C88:C99)/12) -> 1.108433735 | F95: 0.95 | G95: 17.98895582 | I95: =I90+50 -> 2028-06-05 | J95: Pfingstmontag
A96: =K86&"-"&TEXT(B96,"00") -> 2028-09 | B96: 9 | C96: =NETWORKDAYS(DATE(K86,B96,1),DATE(K86,B97,1)-1,I87:I100) -> 21 | D96: 0.9614457831 | E96: =C96/(SUM(C88:C99)/12) -> 1.012048193 | F96: 0.95 | G96: 16.4246988 | I96: =I90+60 -> 2028-06-15 | J96: Fronleichnam
A97: =K86&"-"&TEXT(B97,"00") -> 2028-10 | B97: 10 | C97: =NETWORKDAYS(DATE(K86,B97,1),DATE(K86,B98,1)-1,I87:I100) -> 21 | D97: 1.032289157 | E97: =C97/(SUM(C88:C99)/12) -> 1.012048193 | F97: 1.02 | G97: 17.63493976 | I97: =DATE(K86,10,3) -> 2028-10-03 | J97: Tag der deutschen Einheit
A98: =K86&"-"&TEXT(B98,"00") -> 2028-11 | B98: 11 | C98: =NETWORKDAYS(DATE(K86,B98,1),DATE(K86,B99,1)-1,I87:I100) -> 21 | D98: 1.05253012 | E98: =C98/(SUM(C88:C99)/12) -> 1.012048193 | F98: 1.04 | G98: 17.98072289 | I98: =DATE(K86,11,1) -> 2028-11-01 | J98: Allerheiligen
A99: =K86&"-"&TEXT(B99,"00") -> 2028-12 | B99: 12 | C99: =NETWORKDAYS(DATE(K86,B99,1),DATE(K86+1,1,1)-1,I87:I100) -> 19 | D99: 0.814939759 | E99: =C99/(SUM(C88:C99)/12) -> 0.9156626506 | F99: 0.89 | G99: 13.92188755 | I99: =DATE(K86,12,25) -> 2028-12-25 | J99: 1. Weihnachtsfeiertag
I100: =DATE(K86,12,26) -> 2028-12-26 | J100: 2. Weihnachtsfeiertag
A102: ="calculation of brutto working days per month in "&K102 -> calculation of brutto working days per month in 2029 | I102: bank holidays for year | K102: =K86+1 -> 2029
A103: key | B103: month | C103: working days | D103: resulting envelope | E103: working days envelope | F103: illness/vacation envelope | G103: mean brutto working days | I103: =DATE(K102,1,1) -> 2029-01-01 | J103: Neujahr
A104: =K102&"-"&TEXT(B104,"00") -> 2029-01 | B104: 1 | C104: =NETWORKDAYS(DATE(K102,B104,1),DATE(K102,B105,1)-1,I103:I116) -> 22 | D104: =E104*F104 -> 1.07712 | E104: =C104/(SUM(C104:C115)/12) -> 1.056 | F104: =F88 -> 1.02 | G104: =PPDYear/12*IF(CapaModel="simple",1,D104) -> 18.4008 | I104: =DATE(K102,1,6) -> 2029-01-06 | J104: Dreikönigstag
A105: =K102&"-"&TEXT(B105,"00") -> 2029-02 | B105: 2 | C105: =NETWORKDAYS(DATE(K102,B105,1),DATE(K102,B106,1)-1,I103:I116) -> 20 | D105: 1.008 | E105: =C105/(SUM(C104:C115)/12) -> 0.96 | F105: =F89 -> 1.05 | G105: 17.22 | I105: =I106-2 -> 2029-03-30 | J105: Karfreitag
A106: =K102&"-"&TEXT(B106,"00") -> 2029-03 | B106: 3 | C106: =NETWORKDAYS(DATE(K102,B106,1),DATE(K102,B107,1)-1,I103:I116) -> 21 | D106: 0.99792 | E106: =C106/(SUM(C104:C115)/12) -> 1.008 | F106: 0.99 | G106: 17.0478 | I106: =DOLLAR((DAY(MINUTE(K102/38)/2+55)&".4."&K102)/7,)*7-IF(YEAR(1)=1904,5,6) -> 2029-04-01 | J106: Ostersonntag
A107: =K102&"-"&TEXT(B107,"00") -> 2029-04 | B107: 4 | C107: =NETWORKDAYS(DATE(K102,B107,1),DATE(K102,B108,1)-1,I103:I116) -> 20 | D107: 0.9984 | E107: =C107/(SUM(C104:C115)/12) -> 0.96 | F107: 1.04 | G107: 17.056 | I107: =I106+1 -> 2029-04-02 | J107: Ostermontag
A108: =K102&"-"&TEXT(B108,"00") -> 2029-05 | B108: 5 | C108: =NETWORKDAYS(DATE(K102,B108,1),DATE(K102,B109,1)-1,I103:I116) -> 19 | D108: 0.93936 | E108: =C108/(SUM(C104:C115)/12) -> 0.912 | F108: 1.03 | G108: 16.0474 | I108: =DATE(K102,5,1) -> 2029-05-01 | J108: Tag der Arbeit
A109: =K102&"-"&TEXT(B109,"00") -> 2029-06 | B109: 6 | C109: =NETWORKDAYS(DATE(K102,B109,1),DATE(K102,B110,1)-1,I103:I116) -> 21 | D109: 0.99792 | E109: =C109/(SUM(C104:C115)/12) -> 1.008 | F109: 0.99 | G109: 17.0478 | I109: =I106+39 -> 2029-05-10 | J109: Christi Himmelfahrt
A110: =K102&"-"&TEXT(B110,"00") -> 2029-07 | B110: 7 | C110: =NETWORKDAYS(DATE(K102,B110,1),DATE(K102,B111,1)-1,I103:I116) -> 22 | D110: 1.08768 | E110: =C110/(SUM(C104:C115)/12) -> 1.056 | F110: 1.03 | G110: 18.5812 | I110: =I106+49 -> 2029-05-20 | J110: Pfingstsonntag
A111: =K102&"-"&TEXT(B111,"00") -> 2029-08 | B111: 8 | C111: =NETWORKDAYS(DATE(K102,B111,1),DATE(K102,B112,1)-1,I103:I116) -> 23 | D111: 1.0488 | E111: =C111/(SUM(C104:C115)/12) -> 1.104 | F111: 0.95 | G111: 17.917 | I111: =I106+50 -> 2029-05-21 | J111: Pfingstmontag
A112: =K102&"-"&TEXT(B112,"00") -> 2029-09 | B112: 9 | C112: =NETWORKDAYS(DATE(K102,B112,1),DATE(K102,B113,1)-1,I103:I116) -> 20 | D112: 0.912 | E112: =C112/(SUM(C104:C115)/12) -> 0.96 | F112: 0.95 | G112: 15.58 | I112: =I106+60 -> 2029-05-31 | J112: Fronleichnam
A113: =K102&"-"&TEXT(B113,"00") -> 2029-10 | B113: 10 | C113: =NETWORKDAYS(DATE(K102,B113,1),DATE(K102,B114,1)-1,I103:I116) -> 22 | D113: 1.07712 | E113: =C113/(SUM(C104:C115)/12) -> 1.056 | F113: 1.02 | G113: 18.4008 | I113: =DATE(K102,10,3) -> 2029-10-03 | J113: Tag der deutschen Einheit
A114: =K102&"-"&TEXT(B114,"00") -> 2029-11 | B114: 11 | C114: =NETWORKDAYS(DATE(K102,B114,1),DATE(K102,B115,1)-1,I103:I116) -> 21 | D114: 1.04832 | E114: =C114/(SUM(C104:C115)/12) -> 1.008 | F114: 1.04 | G114: 17.9088 | I114: =DATE(K102,11,1) -> 2029-11-01 | J114: Allerheiligen
A115: =K102&"-"&TEXT(B115,"00") -> 2029-12 | B115: 12 | C115: =NETWORKDAYS(DATE(K102,B115,1),DATE(K102+1,1,1)-1,I103:I116) -> 19 | D115: 0.81168 | E115: =C115/(SUM(C104:C115)/12) -> 0.912 | F115: 0.89 | G115: 13.8662 | I115: =DATE(K102,12,25) -> 2029-12-25 | J115: 1. Weihnachtsfeiertag
I116: =DATE(K102,12,26) -> 2029-12-26 | J116: 2. Weihnachtsfeiertag
A118: ="calculation of brutto working days per month in "&K118 -> calculation of brutto working days per month in 2030 | I118: bank holidays for year | K118: =K102+1 -> 2030
A119: key | B119: month | C119: working days | D119: resulting envelope | E119: working days envelope | F119: illness/vacation envelope | G119: mean brutto working days | I119: =DATE(K118,1,1) -> 2030-01-01 | J119: Neujahr
A120: =K118&"-"&TEXT(B120,"00") -> 2030-01 | B120: 1 | C120: =NETWORKDAYS(DATE(K118,B120,1),DATE(K118,B121,1)-1,I119:I132) -> 22 | D120: =E120*F120 -> 1.07712 | E120: =C120/(SUM(C120:C131)/12) -> 1.056 | F120: =F104 -> 1.02 | G120: =PPDYear/12*IF(CapaModel="simple",1,D120) -> 18.4008 | I120: =DATE(K118,1,6) -> 2030-01-06 | J120: Dreikönigstag
A121: =K118&"-"&TEXT(B121,"00") -> 2030-02 | B121: 2 | C121: =NETWORKDAYS(DATE(K118,B121,1),DATE(K118,B122,1)-1,I119:I132) -> 20 | D121: 1.008 | E121: =C121/(SUM(C120:C131)/12) -> 0.96 | F121: =F105 -> 1.05 | G121: 17.22 | I121: =I122-2 -> 2030-04-19 | J121: Karfreitag
A122: =K118&"-"&TEXT(B122,"00") -> 2030-03 | B122: 3 | C122: =NETWORKDAYS(DATE(K118,B122,1),DATE(K118,B123,1)-1,I119:I132) -> 21 | D122: 0.99792 | E122: =C122/(SUM(C120:C131)/12) -> 1.008 | F122: 0.99 | G122: 17.0478 | I122: =DOLLAR((DAY(MINUTE(K118/38)/2+55)&".4."&K118)/7,)*7-IF(YEAR(1)=1904,5,6) -> 2030-04-21 | J122: Ostersonntag
A123: =K118&"-"&TEXT(B123,"00") -> 2030-04 | B123: 4 | C123: =NETWORKDAYS(DATE(K118,B123,1),DATE(K118,B124,1)-1,I119:I132) -> 20 | D123: 0.9984 | E123: =C123/(SUM(C120:C131)/12) -> 0.96 | F123: 1.04 | G123: 17.056 | I123: =I122+1 -> 2030-04-22 | J123: Ostermontag
A124: =K118&"-"&TEXT(B124,"00") -> 2030-05 | B124: 5 | C124: =NETWORKDAYS(DATE(K118,B124,1),DATE(K118,B125,1)-1,I119:I132) -> 21 | D124: 1.03824 | E124: =C124/(SUM(C120:C131)/12) -> 1.008 | F124: 1.03 | G124: 17.7366 | I124: =DATE(K118,5,1) -> 2030-05-01 | J124: Tag der Arbeit
A125: =K118&"-"&TEXT(B125,"00") -> 2030-06 | B125: 6 | C125: =NETWORKDAYS(DATE(K118,B125,1),DATE(K118,B126,1)-1,I119:I132) -> 18 | D125: 0.85536 | E125: =C125/(SUM(C120:C131)/12) -> 0.864 | F125: 0.99 | G125: 14.6124 | I125: =I122+39 -> 2030-05-30 | J125: Christi Himmelfahrt
A126: =K118&"-"&TEXT(B126,"00") -> 2030-07 | B126: 7 | C126: =NETWORKDAYS(DATE(K118,B126,1),DATE(K118,B127,1)-1,I119:I132) -> 23 | D126: 1.13712 | E126: =C126/(SUM(C120:C131)/12) -> 1.104 | F126: 1.03 | G126: 19.4258 | I126: =I122+49 -> 2030-06-09 | J126: Pfingstsonntag
A127: =K118&"-"&TEXT(B127,"00") -> 2030-08 | B127: 8 | C127: =NETWORKDAYS(DATE(K118,B127,1),DATE(K118,B128,1)-1,I119:I132) -> 22 | D127: 1.0032 | E127: =C127/(SUM(C120:C131)/12) -> 1.056 | F127: 0.95 | G127: 17.138 | I127: =I122+50 -> 2030-06-10 | J127: Pfingstmontag
A128: =K118&"-"&TEXT(B128,"00") -> 2030-09 | B128: 9 | C128: =NETWORKDAYS(DATE(K118,B128,1),DATE(K118,B129,1)-1,I119:I132) -> 21 | D128: 0.9576 | E128: =C128/(SUM(C120:C131)/12) -> 1.008 | F128: 0.95 | G128: 16.359 | I128: =I122+60 -> 2030-06-20 | J128: Fronleichnam
A129: =K118&"-"&TEXT(B129,"00") -> 2030-10 | B129: 10 | C129: =NETWORKDAYS(DATE(K118,B129,1),DATE(K118,B130,1)-1,I119:I132) -> 22 | D129: 1.07712 | E129: =C129/(SUM(C120:C131)/12) -> 1.056 | F129: 1.02 | G129: 18.4008 | I129: =DATE(K118,10,3) -> 2030-10-03 | J129: Tag der deutschen Einheit
A130: =K118&"-"&TEXT(B130,"00") -> 2030-11 | B130: 11 | C130: =NETWORKDAYS(DATE(K118,B130,1),DATE(K118,B131,1)-1,I119:I132) -> 20 | D130: 0.9984 | E130: =C130/(SUM(C120:C131)/12) -> 0.96 | F130: 1.04 | G130: 17.056 | I130: =DATE(K118,11,1) -> 2030-11-01 | J130: Allerheiligen
A131: =K118&"-"&TEXT(B131,"00") -> 2030-12 | B131: 12 | C131: =NETWORKDAYS(DATE(K118,B131,1),DATE(K118+1,1,1)-1,I119:I132) -> 20 | D131: 0.8544 | E131: =C131/(SUM(C120:C131)/12) -> 0.96 | F131: 0.89 | G131: 14.596 | I131: =DATE(K118,12,25) -> 2030-12-25 | J131: 1. Weihnachtsfeiertag
I132: =DATE(K118,12,26) -> 2030-12-26 | J132: 2. Weihnachtsfeiertag
A134: ="calculation of brutto working days per month in "&K134 -> calculation of brutto working days per month in 2031 | I134: bank holidays for year | K134: =K118+1 -> 2031
A135: key | B135: month | C135: working days | D135: resulting envelope | E135: working days envelope | F135: illness/vacation envelope | G135: mean brutto working days | I135: =DATE(K134,1,1) -> 2031-01-01 | J135: Neujahr
A136: =K134&"-"&TEXT(B136,"00") -> 2031-01 | B136: 1 | C136: =NETWORKDAYS(DATE(K134,B136,1),DATE(K134,B137,1)-1,I135:I148) -> 21 | D136: =E136*F136 -> 1.02816 | E136: =C136/(SUM(C136:C147)/12) -> 1.008 | F136: =F120 -> 1.02 | G136: =PPDYear/12*IF(CapaModel="simple",1,D136) -> 17.5644 | I136: =DATE(K134,1,6) -> 2031-01-06 | J136: Dreikönigstag
A137: =K134&"-"&TEXT(B137,"00") -> 2031-02 | B137: 2 | C137: =NETWORKDAYS(DATE(K134,B137,1),DATE(K134,B138,1)-1,I135:I148) -> 20 | D137: 1.008 | E137: =C137/(SUM(C136:C147)/12) -> 0.96 | F137: =F121 -> 1.05 | G137: 17.22 | I137: =I138-2 -> 2031-04-11 | J137: Karfreitag
A138: =K134&"-"&TEXT(B138,"00") -> 2031-03 | B138: 3 | C138: =NETWORKDAYS(DATE(K134,B138,1),DATE(K134,B139,1)-1,I135:I148) -> 21 | D138: 0.99792 | E138: =C138/(SUM(C136:C147)/12) -> 1.008 | F138: 0.99 | G138: 17.0478 | I138: =DOLLAR((DAY(MINUTE(K134/38)/2+55)&".4."&K134)/7,)*7-IF(YEAR(1)=1904,5,6) -> 2031-04-13 | J138: Ostersonntag
A139: =K134&"-"&TEXT(B139,"00") -> 2031-04 | B139: 4 | C139: =NETWORKDAYS(DATE(K134,B139,1),DATE(K134,B140,1)-1,I135:I148) -> 20 | D139: 0.9984 | E139: =C139/(SUM(C136:C147)/12) -> 0.96 | F139: 1.04 | G139: 17.056 | I139: =I138+1 -> 2031-04-14 | J139: Ostermontag
A140: =K134&"-"&TEXT(B140,"00") -> 2031-05 | B140: 5 | C140: =NETWORKDAYS(DATE(K134,B140,1),DATE(K134,B141,1)-1,I135:I148) -> 20 | D140: 0.9888 | E140: =C140/(SUM(C136:C147)/12) -> 0.96 | F140: 1.03 | G140: 16.892 | I140: =DATE(K134,5,1) -> 2031-05-01 | J140: Tag der Arbeit
A141: =K134&"-"&TEXT(B141,"00") -> 2031-06 | B141: 6 | C141: =NETWORKDAYS(DATE(K134,B141,1),DATE(K134,B142,1)-1,I135:I148) -> 19 | D141: 0.90288 | E141: =C141/(SUM(C136:C147)/12) -> 0.912 | F141: 0.99 | G141: 15.4242 | I141: =I138+39 -> 2031-05-22 | J141: Christi Himmelfahrt
A142: =K134&"-"&TEXT(B142,"00") -> 2031-07 | B142: 7 | C142: =NETWORKDAYS(DATE(K134,B142,1),DATE(K134,B143,1)-1,I135:I148) -> 23 | D142: 1.13712 | E142: =C142/(SUM(C136:C147)/12) -> 1.104 | F142: 1.03 | G142: 19.4258 | I142: =I138+49 -> 2031-06-01 | J142: Pfingstsonntag
A143: =K134&"-"&TEXT(B143,"00") -> 2031-08 | B143: 8 | C143: =NETWORKDAYS(DATE(K134,B143,1),DATE(K134,B144,1)-1,I135:I148) -> 21 | D143: 0.9576 | E143: =C143/(SUM(C136:C147)/12) -> 1.008 | F143: 0.95 | G143: 16.359 | I143: =I138+50 -> 2031-06-02 | J143: Pfingstmontag
A144: =K134&"-"&TEXT(B144,"00") -> 2031-09 | B144: 9 | C144: =NETWORKDAYS(DATE(K134,B144,1),DATE(K134,B145,1)-1,I135:I148) -> 22 | D144: 1.0032 | E144: =C144/(SUM(C136:C147)/12) -> 1.056 | F144: 0.95 | G144: 17.138 | I144: =I138+60 -> 2031-06-12 | J144: Fronleichnam
A145: =K134&"-"&TEXT(B145,"00") -> 2031-10 | B145: 10 | C145: =NETWORKDAYS(DATE(K134,B145,1),DATE(K134,B146,1)-1,I135:I148) -> 22 | D145: 1.07712 | E145: =C145/(SUM(C136:C147)/12) -> 1.056 | F145: 1.02 | G145: 18.4008 | I145: =DATE(K134,10,3) -> 2031-10-03 | J145: Tag der deutschen Einheit
A146: =K134&"-"&TEXT(B146,"00") -> 2031-11 | B146: 11 | C146: =NETWORKDAYS(DATE(K134,B146,1),DATE(K134,B147,1)-1,I135:I148) -> 20 | D146: 0.9984 | E146: =C146/(SUM(C136:C147)/12) -> 0.96 | F146: 1.04 | G146: 17.056 | I146: =DATE(K134,11,1) -> 2031-11-01 | J146: Allerheiligen
A147: =K134&"-"&TEXT(B147,"00") -> 2031-12 | B147: 12 | C147: =NETWORKDAYS(DATE(K134,B147,1),DATE(K134+1,1,1)-1,I135:I148) -> 21 | D147: 0.89712 | E147: =C147/(SUM(C136:C147)/12) -> 1.008 | F147: 0.89 | G147: 15.3258 | I147: =DATE(K134,12,25) -> 2031-12-25 | J147: 1. Weihnachtsfeiertag
I148: =DATE(K134,12,26) -> 2031-12-26 | J148: 2. Weihnachtsfeiertag

Sheet Backlog
A1: prio | B1: missing features | C1: requested | D1: finished | E1: Version
A2: A | B2: marker for Virtual Constraint/Drum as stagining phase for EssentialFlow | C2: 2022-12-24 | D2: 2023-01-01 | E2: 3.0
A3: A | B3: staggering/roadmap view with 3 phase before,in,after (bia) contstaint | C3: 2022-12-24 | D3: 2023-01-01 | E3: 3.0
A4: A | B4: generating the bia-dates | C4: 2022-12-24 | D4: 2023-01-01 | E4: 3.0
A5: A | B5: execution management based on bia-phase status - messages based on status & reporting date versus bia-phase-dates | C5: 2022-12-24 | D5: 2023-01-03 | E5: 3.0
A6: A | B6: reporting date of status report - messages based on reporting date - reporting status | C6: 2022-12-24 | D6: 2023-01-03 | E6: 3.0
A7: A | B7: remaining duration in phase - messages if phase overrun | C7: 2022-12-24 | D7: 2023-01-03 | E7: 3.0
A8: A | B8: buffer regain meassures with due-date (removed in anonymous export) | C8: 2022-12-24 | D8: 2023-01-03 | E8: 3.0
A9: A | B9: export of 3phase staggering for A-Dato/Lynx | C9: 2022-12-24 | E9: 3.1
A10: A | B10: export of project structure with ressources for A-Dato/Lynx | C10: 2022-12-24 | E10: 3.1
A11: B | B11: extended buffer regain meassures, days to recover, cost, cost-of-delay if not done | C11: 2022-12-24
A12: B | B12: externalize the translation table for anonymous export to have stable ID's | C12: 2022-09-17
A13: B | B13: full blown xml-export of anonymous Data | C13: 2022-09-17
A14: B | B14: bugfix - there is something wrong with TBP% and many projects | C14: 2022-09-11
A15: C | B15: moving offset with end-of-year-overflow - there is not 13. month! | C15: 2022-09-11
A16: C | B16: moving offset without green background | C16: 2022-09-07
A17: C | B17: shifting projects without shifting old efforts into future | C17: 2013-01-05
A18: E | B18: confirmed and open efforts | C18: 2013-01-07
A19: E | B19: automated pipelininge (with explicit buffer quota) | C19: 2013-01-05
A20: E | B20: automated business value optimization | C20: 2013-01-05
A21: X | B21: anonymous export to exchange data with others to get feedback | C21: 2022-09-06 | D21: 2022-09-17 | E21: 2.2.1
A22: X | B22: Possibility to import data and genearte Sheets automatically | C22: 2022-09-01 | D22: 2022-09-05 | E22: 2.1.3
A23: X | B23: relative load and graphical representation | C23: 2018-06-01 | D23: 2018-08-17
A24: X | B24: backlinks from projects sheets to project list | C24: 2014-02-21 | D24: 2014-08-03
A25: X | B25: year overspanning CapacityModel, CapacityData and FTE-Table in Teamlist | C25: 2014-06-01 | D25: 2014-07-11
A26: X | B26: colours for projects | C26: 2013-11-01 | D26: 2013-11-17
A27: X | B27: quick move of projects with macro | C27: 2013-05-15 | D27: 2013-05-15
A28: X | B28: including capacity model | C28: 2013-01-21 | D28: 2013-01-21
A29: X | B29: including capacity data according to model | C29: 2013-01-21 | D29: 2013-01-21
A30: X | B30: raw output | C30: 2013-01-05 | D30: 2013-01-17
A31: X | B31: additional speed up (no display, no calculation) and status bar | C31: 2013-01-16 | D31: 2013-01-17
A32: X | B32: team load factor diagram | C32: 2013-01-05 | D32: 2013-01-16
A33: X | B33: Zirkelbezug wenn ein Team keine Load hatte | C33: 2013-01-16 | D33: 2013-01-16
A34: X | B34: Capa ohne Nachkommastellen | C34: 2013-01-15 | D34: 2013-01-16
A35: X | B35: Porjekte ohne Kapa im Team weglassen | C35: 2013-01-15 | D35: 2013-01-16
A36: X | B36: integrated capacity data model | C36: 2013-01-05 | D36: 2013-01-15
A37: X | B37: acitve non active | C37: 2013-01-08 | D37: 2013-01-05
A38: X | B38: messages is something seems/is wrong | C38: 2013-01-06 | D38: 2013-01-05
A39: X | B39: nice colours in the tbp, e.g. for overload, load, headlines, and numberformats | C39: 2013-01-03 | D39: 2013-01-04
A40: X | B40: formatting of all other sheets | C40: 2013-01-03 | D40: 2013-01-04
A41: X | B41: average load | C41: 2013-01-04 | D41: 2013-01-04
A42: X | B42: start button in Project list | C42: 2013-01-04 | D42: 2013-01-04
A43: X | B43: project list with links to sheets - boekhoff style | C43: 2013-01-03 | D43: 2013-01-04
A44: X | B44: project end info in project list | C44: 2013-01-03 | D44: 2013-01-04
A45: X | B45: team name lookup | C45: 2013-01-04 | D45: 2013-01-04
A46: X | B46: bug: project in wrong order in tbph | C46: 2013-01-04 | D46: 2013-01-04
A47: X | B47: aggregated overload | C47: 2013-01-05 | D47: 2013-01-05
A48: X | B48: colored overload | C48: 2013-01-05 | D48: 2013-01-05
A49: X | B49: project end date wrong for project not finished in the tbp time frame | C49: 2013-01-05 | D49: 2013-01-05
A50: X | B50: variable project effort table position in project sheets | C50: 2031-01-04 | D50: 2013-01-05
A51: X | B51: clean code | C51: 2013-01-03 | D51: 2013-01-05
A52: X | B52: speed code | C52: 2013-01-04 | D52: 2013-01-05

Sheet Colorindex
A1: ColorIndex
A2: 0
A3: 1 | C3: 43
A4: 2 | C4: 45
A5: 3
A6: 4
A7: 5
A8: 6
A9: 7
A10: 8
A11: 9
A12: 10
A13: 11
A14: 12
A15: 13
A16: 14
A17: 15
A18: 16
A19: 17
A20: 18
A21: 19
A22: 20
A23: 21
A24: 22
A25: 23
A26: 24
A27: 25
A28: 26
A29: 27
A30: 28
A31: 29
A32: 30
A33: 31
A34: 32
A35: 33
A36: 34
A37: 35
A38: 36
A39: 37
A40: 38
A41: 39
A42: 40
A43: 41
A44: 42
A46: 44
A48: 46
A49: 47
A50: 48
A51: 49
A52: 50
A53: 51
A54: 52
A55: 53
A56: 54
A57: 55
A58: 56
